{"text_format":"1","workbook":"xlsx","n_sheets":4,"sheets":["Instructions","Stakeholder Inputs","Configuration","Chart Data"],"not_rendered":{"charts":1,"images":2,"macros":1,"external_links":0,"defined_names":22,"comments":0,"pivot_tables":0},"unopened":[],"bounds":{"document_bytes":16777216,"sheet_cells":100000,"rows_first":2000,"rows_last":500,"rows_between":2000,"halvings":0,"cell_chars":16384,"cell_head_chars":4096},"cells_cut":0,"cells_raw":0,"read":"whole","date_system":"1900"}

{"sheet":"Instructions","index":0,"n_rows":41,"n_cols":2,"rows_kept":41,"cut":false,"hidden":false,"merged":[]}
[]
[null,"This tool was originally developed by the United States Agency for International Development (USAID). This 2018 version was produced for review by USAID. It was prepared by the LEARN mechanism out of the USAID Learning, Evaluation and Research (LER) Office in the Bureau of Policy, Planning and Learning (PPL). LEARN is managed by Dexis Consulting Group."]
[]
[null,"Collaboration Mapping Worksheet Instructions"]
[null,"You can use this worksheet offline by downloading it from Learning Lab (http://usaidlearninglab.org/library/collaboration-mapping ) and saving it to your computer. For the automated features to work properly, make sure you enable macros. As you input each stakeholder and their associated data on the Stakeholder Input tab, the collaboration map in that tab will automatically update ."]
[null,"Step 1: Title and Logo"]
[null,"Give your map a title by filling out the ‘Title’ field. That title will automatically appear on your map."]
[null,"If you would like to use a logo different from the default USAID logo, click on the logo, and on the ‘Chart Tools/Format’ menu tab, select the ‘Shape Fill’ option from the Shape Styles area. Choose the ‘Picture’ option near the bottom of the Shape Fill drop-down menu and browse for the image file you would like to use instead. It will be cropped to a circle the same size as the default USAID logo."]
[null,"Step 2: Organization Categories"]
[null,"In the worksheet section marked ‘Organization Quadrant Setup,’ type the four types of organizations in the ‘Name’ column, replacing the I, II, III, and IV. This could be U.S. Government, Host Country Institutions, Implementing Partners, Academic/Civil Society, Other Donors, etc., depending on the nature of your collaboration map. If you want them to appear in particular quadrants on the map, align your labels with the ‘Location’ column (Upper Right, Upper Left, etc.). Once you identify the labels for the organizational type quadrants, these will appear on the drop-down menu in the collaboration mapping template below in the ‘Type of Organization’ column."]
[null,"Step 3: Stakeholder/Relationship Dimensions"]
[null,"In the worksheet section marked 'Stakeholder/Relationship Dimensions,' you can customize the map from the default dimensions of strength of interaction, and resource- and non-resource-based influence. Replace the default labels to change the type of information you wish to capture. For example, for a communications initiative, you might want to identify stakeholders' current understanding/awareness of an issue. For a change management initiative, you can consider capturing the level of impact the change could have on the stakeholder."]
[null,"Step 4: Stakeholders"]
[null,"In the collaboration mapping template section, list your stakeholders in the ‘Stakeholder Name’ column."]
[null,"This name will be automatically copied to the ‘Custom Data Label’ column and serve as the stakeholder’s circle label in your collaboration map. If you would like to use a shortened name or acronym in your collaboration map, you can simply type the custom label you prefer in the ‘Custom Data Label’ column. "]
[null,"Step 5: Quadrant Placement"]
[null,"For each stakeholder you have listed, identify which ‘Type of Organization’ best fits them in the next column. Double-click on the cell (or click the small arrow button to the right of the cell) to show the drop-down menu of labels you chose in step 2. By selecting one of the four options, the circle for the stakeholder will be placed in the appropriate quadrant of your map."]
[null,"Step 6-8: Stakeholder/Relationship Dimension Information"]
[null,"For each of the three stakeholder/relationship dimensions you chose in Step 3, provide a numeric determination of the value on a scale of 1-10 for each stakeholder."]
[null,"• Dimension 1 (Default: Current Interaction/Relationship Strength): This will determine the circle’s proximity to the center of the map. The higher the number, the closer the circle will be to the center.\n• Dimension 2 (Default: Resource-based Influence): This will determine the circle’s relative size. The higher the number, the larger the circle.\n• Dimension 3 (Default: Non-resource-based Influence): This will determine how light or dark the circle color is. The higher the number, the darker the circle’s color fill."]
[null,"Please note: The lines/arrows described in the Facilitation Guide (page 6, available on Learning Lab) that represent interaction characteristics and financial flows are not automated and will need to be inserted manually if you wish to include them. Copy and paste your completed collaboration map to a new document and use the insert function to add your lines/arrows. If you do not choose to include these, you can incorporate both the frequency and the quality of the interaction/relationship with each stakeholder when you determine your 1-10 ranking for this value."]
[null,"The relative scale of the circles to one another and the map overall can be adjusted with the ‘Bubble Scale’ option below the map or on the Configuration tab."]
[null,"Step 9: Priority"]
[null,"By selecting the checkbox in the ‘Priority’ column, you can indicate if a particular stakeholder is a priority for collaboration. This will be indicated by a glow effect around the circle."]
[null,"Step 10: Relative Positioning"]
[null,"Due to relative size and random placement of the circles, they may occasionally overlap one other. You can re-order a circle by clicking on its cell in the Custom Data Label column and then clicking the ‘To Top’ or ‘To Bottom’ buttons. The ‘Reset Order’ button will reset the layer order to the default with the stakeholders’ circles displayed from bottom to top in the order than are entered into the table (e.g., Stakeholder #1 is the bottommost circle)."]
[null,"You can also adjust a circle’s position within its quadrant without changing the value of Dimension 1 (e.g., Current Interaction/Relationship Strength) by using the ‘Adjust Position’ sliders. This might be useful if you want to indicate that a particular stakeholder is closer to one neighboring quadrant than other. For example, if an NGO has very close ties with local universities, its circle would be in the NGO quadrant, but you can move it relatively closer to the adjacent Academia quadrant."]
[null,"You can also use the ‘Adjust Position’ sliders to move stakeholders closer or farther apart from one another to give a more accurate picture of the overall stakeholder relationships rather than simply their relationship to the center. Moving the slider to the right adjusts the circle clockwise; to the left adjusts the circle counterclockwise. The ‘Clear’ button will reset all of the sliders to the beginning of each quadrant when adjusting it clockwise (all the way to the right on the slider). The ‘Randomize’ button will assign random values to each circle’s position, which can then be refined using the individual sliders."]
[null,"The offset controls in the ‘Logo Size and Offset’ box under the map allow you to adjust the proximity to the central logo and the stakeholder circles.  Use this to increase the distance between the central logo and stakeholder circles that have a high relationship strength (closer to the circle) and/or high financial influence (larger circle) and would otherwise overlap with the central logo."]
[null,"Similarly, the ‘Axis Scale’ options under the map allow you to adjust the axis value for the quadrants.  This allows for customization when there are stakeholders with low relationship strength (further from the central logo) and their circles would be cut off the map. Press ‘increase’ to bring the stakeholder circles relatively closer to the central logo. Conversely, if you would like to increase the distance between the circles and spread them out further from the central logo, press ‘decrease.’"]
[null,"Other Configuration Options"]
[null,"There are several interactive elements on the Configuration tab that allow you to customize your collaboration map by changing various settings:"]
[null,"·  Dimension 3 shading color palette:  This is where the colors for each of the input values (1-10) are assigned for stakeholder/relationship dimension 3 (default: Non-resource-based Influence).   Various preset color palettes have been provided, however this can be set to any desired combination.  The fill color of each cell maps to the circle color for the corresponding non-resource-based influence value.  To adjust, change the fill color to the desired color.  You can also specify any label color combination by setting the font fill color for the corresponding cell.  To use a preset color palette, copy and paste the 10 cells of the preset palette to the input area labeled ‘Color Palette’."]
[null,"·  Glow Color:  Set the fill color of this cell to the desired glow color that identifies priority stakeholders."]
[null,"·  Glow Radius:  The size of the glow can be adjusted by entering the value (0-20) or using the arrows."]
[null,"· Logo Offset: This specifies the distance between the central logo and the closest possible stakeholder circle (as defined by the Current Interaction/Relationship Strength [proximity to center] and Resource-based Influence [size of circle]).  Enter any value greater than 0 or use the arrows."]
[null,"· Logo Size: This specifies the relative size of the logo, corresponding to the sizes for Resource-based Influence (size of circle).  Enter a value 1-10 or use the arrows."]
[null,"· Logo on Top: By checking this box, your logo will appear above any circles that may be close enough to overlap."]
[null,"· Axis Size:  This specifies the visible axis.  Depending on the relative size and placement of the circles, this can be adjusted to zoom in or out to avoid outlying circles being cut off or to increase the distance between the central logo and closer circles."]
[null,"· Relative Circle Size:  The relative size of the circles can be determined using either Width or Area. Choosing ‘Width’ will size each circle using the width and will exaggerate differences in Stakeholder/Relationship Dimension #2 (the relative size of circles). Choosing ‘Area’ will base the relative size on the area of each circle and will have a more gradual increase in size. Use the drop-down to select either choice."]
[null,"· Circle Scale:  The overall scale of the circles can also be adjusted from its default value of 100.  This can be modified to provide greater customization depending on the set of organizations and their size/placement.  Enter any value (0-300) or use the arrows."]

{"sheet":"Stakeholder Inputs","index":1,"n_rows":211,"n_cols":21,"rows_kept":211,"cut":false,"hidden":false,"merged":[[1,4,1,7],[8,1,8,5],[24,12,24,14],[24,20,24,22],[3,5,3,7],[4,5,4,7],[5,5,5,7]]}
[null,"Organization Quadrant Setup ",null,null,"Title"]
[null,"Location","Name",null,"Title"]
[null,"(Upper Right)","I",null,"Stakeholder/Relationship Dimensions",null,null,null,1]
[null,"(Upper Left)","II",null,"Dimension 1","Current Interaction/ Relationship Strength",null,null,2]
[null,"(Lower Left)","III",null,"Dimension 2","Resource-based Influence",null,null,3]
[null,"(Lower Right)","IV",null,"Dimension 3","Non-resource-based Influence",null,null,4]
[]
[]
[null,"Collaboration Mapping Template"]
["Number","Stakeholder Name","Type of Organization",{"$f":"Configuration_Label_Scale1&CHAR(10)&\"(1-10)\"","v":"Current Interaction/ Relationship Strength\n(1-10)"},{"$f":"Configuration_Label_Scale2&CHAR(10)&\"(1-10)\"","v":"Resource-based Influence\n(1-10)"},{"$f":"Configuration_Label_Scale3&CHAR(10)&\"(1-10)\"","v":"Non-resource-based Influence\n(1-10)"},"Priority\n(Yes/No)","Custom Data Label",null,null,"Adjust Position\n× Counterclockwise - Clockwise Ø"]
[null,null,null,"1 = Low = Farther Out\n10 = High = Closer In","​​1​ ​=​ ​Low= Smaller Circle\n​ 10 = High = Larger Circle","​1​ ​=​ ​Low= Lighter Color\n​ 10 = High = Darker Color","Yes indicates glow"]
[1,null,null,null,null,null,null,{"$f":"B12","v":0},false,{"$f":"I12","v":false}]
[2,null,null,null,null,null,null,0,false,{"$f":"I13","v":false}]
[3,null,null,null,null,null,null,0,false,false]
[4,null,null,null,null,null,null,0,false,false]
[5,null,null,null,null,null,null,0,false,false]
[6,null,null,null,null,null,null,0,false,false]
[7,null,null,null,null,null,null,0,false,false]
[8,null,null,null,null,null,null,0,false,false]
[9,null,null,null,null,null,null,0,false,false]
[10,null,null,null,null,null,null,0,false,false]
[11,null,null,null,null,null,null,0,false,false]
[12,null,null,null,null,null,null,0,false,false]
[13,null,null,null,null,null,null,0,false,false]
[14,null,null,null,null,null,null,0,false,false,null,null,"Logo Size and Offset",null,null,null,null,"Circle Scale",null,null,"Axis Scale"]
[15,null,null,null,null,null,null,0,false,false]
[16,null,null,null,null,null,null,0,false,false]
[17,null,null,null,null,null,null,0,false,false]
[18,null,null,null,null,null,null,0,false,false]
[19,null,null,null,null,null,null,0,false,false]
[20,null,null,null,null,null,null,0,false,false]
[21,null,null,null,null,null,null,0,false,false]
[22,null,null,null,null,null,null,0,false,false]
[23,null,null,null,null,null,null,0,false,false]
[24,null,null,null,null,null,null,0,false,false]
[25,null,null,null,null,null,null,0,false,false]
[26,null,null,null,null,null,null,0,false,false]
[27,null,null,null,null,null,null,0,false,false]
[28,null,null,null,null,null,null,0,false,false]
[29,null,null,null,null,null,null,0,false,false]
[30,null,null,null,null,null,null,0,false,false]
[31,null,null,null,null,null,null,0,false,false]
[32,null,null,null,null,null,null,0,false,false]
[33,null,null,null,null,null,null,{"$f":"B44","v":0},false,false]
[34,null,null,null,null,null,null,0,false,false]
[35,null,null,null,null,null,null,0,false,false]
[36,null,null,null,null,null,null,0,false,false]
[37,null,null,null,null,null,null,0,false,false]
[38,null,null,null,null,null,null,0,false,false]
[39,null,null,null,null,null,null,0,false,false]
[40,null,null,null,null,null,null,0,false,false]
[41,null,null,null,null,null,null,0,false,false]
[42,null,null,null,null,null,null,0,false,false]
[43,null,null,null,null,null,null,0,false,false]
[44,null,null,null,null,null,null,0,false,false]
[45,null,null,null,null,null,null,0,false,false]
[46,null,null,null,null,null,null,0,false,false]
[47,null,null,null,null,null,null,0,false,false]
[48,null,null,null,null,null,null,0,false,false]
[49,null,null,null,null,null,null,0,false,false]
[50,null,null,null,null,null,null,0,false,false]
[51,null,null,null,null,null,null,0,false,false]
[52,null,null,null,null,null,null,0,false,false]
[53,null,null,null,null,null,null,0,false,false]
[54,null,null,null,null,null,null,0,false,false]
[55,null,null,null,null,null,null,0,false,false]
[56,null,null,null,null,null,null,0,false,false]
[57,null,null,null,null,null,null,0,false,false]
[58,null,null,null,null,null,null,0,false,false]
[59,null,null,null,null,null,null,0,false,false]
[60,null,null,null,null,null,null,0,false,false]
[61,null,null,null,null,null,null,0,false,false]
[62,null,null,null,null,null,null,0,false,false]
[63,null,null,null,null,null,null,0,false,false]
[64,null,null,null,null,null,null,0,false,false]
[65,null,null,null,null,null,null,{"$f":"B76","v":0},false,false]
[66,null,null,null,null,null,null,0,false,{"$f":"I77","v":false}]
[67,null,null,null,null,null,null,0,false,false]
[68,null,null,null,null,null,null,0,false,false]
[69,null,null,null,null,null,null,0,false,false]
[70,null,null,null,null,null,null,0,false,false]
[71,null,null,null,null,null,null,0,false,false]
[72,null,null,null,null,null,null,0,false,false]
[73,null,null,null,null,null,null,0,false,false]
[74,null,null,null,null,null,null,0,false,false]
[75,null,null,null,null,null,null,0,false,false]
[76,null,null,null,null,null,null,0,false,{"$f":"I87","v":false}]
[77,null,null,null,null,null,null,0,false,false]
[78,null,null,null,null,null,null,0,false,false]
[79,null,null,null,null,null,null,0,false,false]
[80,null,null,null,null,null,null,0,false,false]
[81,null,null,null,null,null,null,0,false,false]
[82,null,null,null,null,null,null,0,false,false]
[83,null,null,null,null,null,null,0,false,false]
[84,null,null,null,null,null,null,0,false,false]
[85,null,null,null,null,null,null,0,false,false]
[86,null,null,null,null,null,null,0,false,false]
[87,null,null,null,null,null,null,0,false,false]
[88,null,null,null,null,null,null,0,false,false]
[89,null,null,null,null,null,null,0,false,false]
[90,null,null,null,null,null,null,0,false,false]
[91,null,null,null,null,null,null,0,false,false]
[92,null,null,null,null,null,null,0,false,false]
[93,null,null,null,null,null,null,0,false,false]
[94,null,null,null,null,null,null,0,false,false]
[95,null,null,null,null,null,null,0,false,false]
[96,null,null,null,null,null,null,0,false,false]
[97,null,null,null,null,null,null,{"$f":"B108","v":0},false,false]
[98,null,null,null,null,null,null,0,false,false]
[99,null,null,null,null,null,null,0,false,false]
[100,null,null,null,null,null,null,0,false,false]
[101,null,null,null,null,null,null,0,false,false]
[102,null,null,null,null,null,null,0,false,false]
[103,null,null,null,null,null,null,0,false,false]
[104,null,null,null,null,null,null,0,false,false]
[105,null,null,null,null,null,null,0,false,false]
[106,null,null,null,null,null,null,0,false,false]
[107,null,null,null,null,null,null,0,false,false]
[108,null,null,null,null,null,null,0,false,false]
[109,null,null,null,null,null,null,0,false,false]
[110,null,null,null,null,null,null,0,false,false]
[111,null,null,null,null,null,null,0,false,false]
[112,null,null,null,null,null,null,0,false,false]
[113,null,null,null,null,null,null,0,false,false]
[114,null,null,null,null,null,null,0,false,false]
[115,null,null,null,null,null,null,0,false,false]
[116,null,null,null,null,null,null,0,false,false]
[117,null,null,null,null,null,null,0,false,false]
[118,null,null,null,null,null,null,0,false,false]
[119,null,null,null,null,null,null,0,false,false]
[120,null,null,null,null,null,null,0,false,false]
[121,null,null,null,null,null,null,0,false,false]
[122,null,null,null,null,null,null,0,false,false]
[123,null,null,null,null,null,null,0,false,false]
[124,null,null,null,null,null,null,0,false,false]
[125,null,null,null,null,null,null,0,false,false]
[126,null,null,null,null,null,null,0,false,false]
[127,null,null,null,null,null,null,0,false,false]
[128,null,null,null,null,null,null,0,false,false]
[129,null,null,null,null,null,null,{"$f":"B140","v":0},false,false]
[130,null,null,null,null,null,null,0,false,false]
[131,null,null,null,null,null,null,0,false,false]
[132,null,null,null,null,null,null,0,false,false]
[133,null,null,null,null,null,null,0,false,false]
[134,null,null,null,null,null,null,0,false,false]
[135,null,null,null,null,null,null,0,false,false]
[136,null,null,null,null,null,null,0,false,false]
[137,null,null,null,null,null,null,0,false,false]
[138,null,null,null,null,null,null,0,false,false]
[139,null,null,null,null,null,null,0,false,false]
[140,null,null,null,null,null,null,0,false,{"$f":"I151","v":false}]
[141,null,null,null,null,null,null,0,false,false]
[142,null,null,null,null,null,null,0,false,false]
[143,null,null,null,null,null,null,0,false,false]
[144,null,null,null,null,null,null,0,false,false]
[145,null,null,null,null,null,null,0,false,false]
[146,null,null,null,null,null,null,0,false,false]
[147,null,null,null,null,null,null,0,false,false]
[148,null,null,null,null,null,null,0,false,false]
[149,null,null,null,null,null,null,0,false,false]
[150,null,null,null,null,null,null,0,false,false]
[151,null,null,null,null,null,null,0,false,false]
[152,null,null,null,null,null,null,0,false,false]
[153,null,null,null,null,null,null,0,false,false]
[154,null,null,null,null,null,null,0,false,false]
[155,null,null,null,null,null,null,0,false,false]
[156,null,null,null,null,null,null,0,false,false]
[157,null,null,null,null,null,null,0,false,false]
[158,null,null,null,null,null,null,0,false,false]
[159,null,null,null,null,null,null,0,false,false]
[160,null,null,null,null,null,null,0,false,false]
[161,null,null,null,null,null,null,{"$f":"B172","v":0},false,false]
[162,null,null,null,null,null,null,0,false,false]
[163,null,null,null,null,null,null,0,false,false]
[164,null,null,null,null,null,null,0,false,false]
[165,null,null,null,null,null,null,0,false,false]
[166,null,null,null,null,null,null,0,false,false]
[167,null,null,null,null,null,null,0,false,false]
[168,null,null,null,null,null,null,0,false,false]
[169,null,null,null,null,null,null,0,false,false]
[170,null,null,null,null,null,null,0,false,false]
[171,null,null,null,null,null,null,0,false,false]
[172,null,null,null,null,null,null,0,false,false]
[173,null,null,null,null,null,null,0,false,false]
[174,null,null,null,null,null,null,0,false,false]
[175,null,null,null,null,null,null,0,false,false]
[176,null,null,null,null,null,null,0,false,false]
[177,null,null,null,null,null,null,0,false,false]
[178,null,null,null,null,null,null,0,false,false]
[179,null,null,null,null,null,null,0,false,false]
[180,null,null,null,null,null,null,0,false,false]
[181,null,null,null,null,null,null,0,false,false]
[182,null,null,null,null,null,null,0,false,false]
[183,null,null,null,null,null,null,0,false,false]
[184,null,null,null,null,null,null,0,false,false]
[185,null,null,null,null,null,null,0,false,false]
[186,null,null,null,null,null,null,0,false,false]
[187,null,null,null,null,null,null,0,false,false]
[188,null,null,null,null,null,null,0,false,false]
[189,null,null,null,null,null,null,0,false,false]
[190,null,null,null,null,null,null,0,false,false]
[191,null,null,null,null,null,null,0,false,false]
[192,null,null,null,null,null,null,0,false,false]
[193,null,null,null,null,null,null,{"$f":"B204","v":0},false,false]
[194,null,null,null,null,null,null,0,false,false]
[195,null,null,null,null,null,null,0,false,false]
[196,null,null,null,null,null,null,0,false,false]
[197,null,null,null,null,null,null,0,false,false]
[198,null,null,null,null,null,null,0,false,false]
[199,null,null,null,null,null,null,0,false,false]
[200,null,null,null,null,null,null,0,false,false]

{"sheet":"Configuration","index":2,"n_rows":34,"n_cols":12,"rows_kept":34,"cut":false,"hidden":false,"merged":[[5,1,5,2]]}
[]
[null,"Configuration Options"]
[]
[]
[]
[null,"Dimension 3 Shading Color Palette",null,null,null,"Aqua","Grey","Green","Blue","Tan","Red","Custom"]
[null,1,"Label",null,null,"Label","Label","Label","Label","Label","Label"]
[null,2,"Label",null,null,"Label","Label","Label","Label","Label","Label"]
[null,3,"Label",null,null,"Label","Label","Label","Label","Label","Label"]
[null,4,"Label",null,null,"Label","Label","Label","Label","Label","Label"]
[null,5,"Label",null,null,"Label","Label","Label","Label","Label","Label"]
[null,6,"Label",null,null,"Label","Label","Label","Label","Label","Label"]
[null,7,"Label",null,null,"Label","Label","Label","Label","Label","Label"]
[null,8,"Label",null,null,"Label","Label","Label","Label","Label","Label"]
[null,9,"Label",null,null,"Label","Label","Label","Label","Label","Label"]
[null,10,"Label",null,null,"Label","Label","Label","Label","Label","Label"]
[]
[]
[]
[null,"Glow Color"]
[null,"Glow Radius",5]
[]
[null,"Logo Offset",3]
[]
[null,"Logo Size",4]
[]
[null,"Logo on Top",null,null,true]
[]
[null,"Axis Size",15]
[]
[null,"Relative Circle  Size","Area"]
[null,"Circle Scale",100]
[]
[null,"Default Circle Scale",100]

{"sheet":"Chart Data","index":3,"n_rows":211,"n_cols":21,"rows_kept":211,"cut":false,"hidden":true,"merged":[]}
[1,0,90]
[2,90,180]
[3,180,270]
[4,270,360]
[]
[]
["Chart Data"]
[null,null,null,null,null,null,null,null,null,null,null,null,null,null,null,null,null,null,"Adjustment"]
["SeriesName","Original Series Number","Organization Name","Type of Organization","Current Interaction \nRelationship Strength\n(1-10)","Financial influence \n(1-10)","Non-financial Influence \n(1-10)","Priority","Distance","Name","X","Y","Size","Color","Glow","Quadrant","Angle from Origin (Degrees)","Angle from Origin (Radians)","Angle offset within Quadrant (0-90)","Angle Adjustment","Data Label"]
["Max",1,null,null,null,null,null,null,null,"Max Bubble",0,0,10]
["USAID",2,null,null,null,null,null,null,null,"USAID Logo",0,0,{"$f":"configuration_logosize","v":4}]
[1,3,{"$f":"'Stakeholder Inputs'!B12","v":0},{"$f":"'Stakeholder Inputs'!C12","v":0},{"$f":"'Stakeholder Inputs'!D12","v":0},{"$f":"'Stakeholder Inputs'!E12","v":0},{"$f":"'Stakeholder Inputs'!F12","v":0},{"$f":"'Stakeholder Inputs'!I12","v":false},{"$f":"(10-E12+configuration_distanceoffset)","v":13},{"$f":"C12","v":0},{"$f":"I12*COS(R12)","v":13},{"$f":"I12*SIN(R12)","v":0},{"$f":"F12","v":0},{"$f":"G12","v":0},{"$f":"H12","v":false},{"$f":"IFERROR(VLOOKUP(D12,table_quadrants_number,7,FALSE),0)","v":0},{"$f":"IFERROR(VLOOKUP(P12,table_quadrants_angles,2,FALSE)+S12,0)","v":0},{"$f":"RADIANS(Q12)","v":0},{"$f":"90-T12","v":26},64,{"$f":"IF('Stakeholder Inputs'!H12<>0,'Stakeholder Inputs'!H12,\"\")","v":""}]
[2,4,{"$f":"'Stakeholder Inputs'!B13","v":0},{"$f":"'Stakeholder Inputs'!C13","v":0},{"$f":"'Stakeholder Inputs'!D13","v":0},{"$f":"'Stakeholder Inputs'!E13","v":0},{"$f":"'Stakeholder Inputs'!F13","v":0},{"$f":"'Stakeholder Inputs'!I13","v":false},13,{"$f":"C13","v":0},{"$f":"I13*COS(R13)","v":13},{"$f":"I13*SIN(R13)","v":0},{"$f":"F13","v":0},{"$f":"G13","v":0},{"$f":"H13","v":false},0,0,{"$f":"RADIANS(Q13)","v":0},{"$f":"90-T13","v":42},48,{"$f":"IF('Stakeholder Inputs'!H13<>0,'Stakeholder Inputs'!H13,\"\")","v":""}]
[3,5,{"$f":"'Stakeholder Inputs'!B14","v":0},{"$f":"'Stakeholder Inputs'!C14","v":0},{"$f":"'Stakeholder Inputs'!D14","v":0},{"$f":"'Stakeholder Inputs'!E14","v":0},{"$f":"'Stakeholder Inputs'!F14","v":0},{"$f":"'Stakeholder Inputs'!I14","v":false},13,0,13,0,0,0,false,0,0,0,38,52,{"$f":"IF('Stakeholder Inputs'!H14<>0,'Stakeholder Inputs'!H14,\"\")","v":""}]
[4,6,{"$f":"'Stakeholder Inputs'!B15","v":0},{"$f":"'Stakeholder Inputs'!C15","v":0},{"$f":"'Stakeholder Inputs'!D15","v":0},{"$f":"'Stakeholder Inputs'!E15","v":0},{"$f":"'Stakeholder Inputs'!F15","v":0},{"$f":"'Stakeholder Inputs'!I15","v":false},13,0,13,0,0,0,false,0,0,0,64,26,{"$f":"IF('Stakeholder Inputs'!H15<>0,'Stakeholder Inputs'!H15,\"\")","v":""}]
[5,7,{"$f":"'Stakeholder Inputs'!B16","v":0},{"$f":"'Stakeholder Inputs'!C16","v":0},{"$f":"'Stakeholder Inputs'!D16","v":0},{"$f":"'Stakeholder Inputs'!E16","v":0},{"$f":"'Stakeholder Inputs'!F16","v":0},{"$f":"'Stakeholder Inputs'!I16","v":false},13,0,13,0,0,0,false,0,0,0,63,27,{"$f":"IF('Stakeholder Inputs'!H16<>0,'Stakeholder Inputs'!H16,\"\")","v":""}]
[6,8,{"$f":"'Stakeholder Inputs'!B17","v":0},{"$f":"'Stakeholder Inputs'!C17","v":0},{"$f":"'Stakeholder Inputs'!D17","v":0},{"$f":"'Stakeholder Inputs'!E17","v":0},{"$f":"'Stakeholder Inputs'!F17","v":0},{"$f":"'Stakeholder Inputs'!I17","v":false},13,0,13,0,0,0,false,0,0,0,20,70,{"$f":"IF('Stakeholder Inputs'!H17<>0,'Stakeholder Inputs'!H17,\"\")","v":""}]
[7,9,{"$f":"'Stakeholder Inputs'!B18","v":0},{"$f":"'Stakeholder Inputs'!C18","v":0},{"$f":"'Stakeholder Inputs'!D18","v":0},{"$f":"'Stakeholder Inputs'!E18","v":0},{"$f":"'Stakeholder Inputs'!F18","v":0},{"$f":"'Stakeholder Inputs'!I18","v":false},13,0,13,0,0,0,false,0,0,0,89,1,{"$f":"IF('Stakeholder Inputs'!H18<>0,'Stakeholder Inputs'!H18,\"\")","v":""}]
[8,10,{"$f":"'Stakeholder Inputs'!B19","v":0},{"$f":"'Stakeholder Inputs'!C19","v":0},{"$f":"'Stakeholder Inputs'!D19","v":0},{"$f":"'Stakeholder Inputs'!E19","v":0},{"$f":"'Stakeholder Inputs'!F19","v":0},{"$f":"'Stakeholder Inputs'!I19","v":false},13,0,13,0,0,0,false,0,0,0,21,69,{"$f":"IF('Stakeholder Inputs'!H19<>0,'Stakeholder Inputs'!H19,\"\")","v":""}]
[9,11,{"$f":"'Stakeholder Inputs'!B20","v":0},{"$f":"'Stakeholder Inputs'!C20","v":0},{"$f":"'Stakeholder Inputs'!D20","v":0},{"$f":"'Stakeholder Inputs'!E20","v":0},{"$f":"'Stakeholder Inputs'!F20","v":0},{"$f":"'Stakeholder Inputs'!I20","v":false},13,0,13,0,0,0,false,0,0,0,16,74,{"$f":"IF('Stakeholder Inputs'!H20<>0,'Stakeholder Inputs'!H20,\"\")","v":""}]
[10,12,{"$f":"'Stakeholder Inputs'!B21","v":0},{"$f":"'Stakeholder Inputs'!C21","v":0},{"$f":"'Stakeholder Inputs'!D21","v":0},{"$f":"'Stakeholder Inputs'!E21","v":0},{"$f":"'Stakeholder Inputs'!F21","v":0},{"$f":"'Stakeholder Inputs'!I21","v":false},13,0,13,0,0,0,false,0,0,0,26,64,{"$f":"IF('Stakeholder Inputs'!H21<>0,'Stakeholder Inputs'!H21,\"\")","v":""}]
[11,13,{"$f":"'Stakeholder Inputs'!B22","v":0},{"$f":"'Stakeholder Inputs'!C22","v":0},{"$f":"'Stakeholder Inputs'!D22","v":0},{"$f":"'Stakeholder Inputs'!E22","v":0},{"$f":"'Stakeholder Inputs'!F22","v":0},{"$f":"'Stakeholder Inputs'!I22","v":false},13,0,13,0,0,0,false,0,0,0,86,4,{"$f":"IF('Stakeholder Inputs'!H22<>0,'Stakeholder Inputs'!H22,\"\")","v":""}]
[12,14,{"$f":"'Stakeholder Inputs'!B23","v":0},{"$f":"'Stakeholder Inputs'!C23","v":0},{"$f":"'Stakeholder Inputs'!D23","v":0},{"$f":"'Stakeholder Inputs'!E23","v":0},{"$f":"'Stakeholder Inputs'!F23","v":0},{"$f":"'Stakeholder Inputs'!I23","v":false},13,0,13,0,0,0,false,0,0,0,53,37,{"$f":"IF('Stakeholder Inputs'!H23<>0,'Stakeholder Inputs'!H23,\"\")","v":""}]
[13,15,{"$f":"'Stakeholder Inputs'!B24","v":0},{"$f":"'Stakeholder Inputs'!C24","v":0},{"$f":"'Stakeholder Inputs'!D24","v":0},{"$f":"'Stakeholder Inputs'!E24","v":0},{"$f":"'Stakeholder Inputs'!F24","v":0},{"$f":"'Stakeholder Inputs'!I24","v":false},13,0,13,0,0,0,false,0,0,0,12,78,{"$f":"IF('Stakeholder Inputs'!H24<>0,'Stakeholder Inputs'!H24,\"\")","v":""}]
[14,16,{"$f":"'Stakeholder Inputs'!B25","v":0},{"$f":"'Stakeholder Inputs'!C25","v":0},{"$f":"'Stakeholder Inputs'!D25","v":0},{"$f":"'Stakeholder Inputs'!E25","v":0},{"$f":"'Stakeholder Inputs'!F25","v":0},{"$f":"'Stakeholder Inputs'!I25","v":false},13,0,13,0,0,0,false,0,0,0,19,71,{"$f":"IF('Stakeholder Inputs'!H25<>0,'Stakeholder Inputs'!H25,\"\")","v":""}]
[15,17,{"$f":"'Stakeholder Inputs'!B26","v":0},{"$f":"'Stakeholder Inputs'!C26","v":0},{"$f":"'Stakeholder Inputs'!D26","v":0},{"$f":"'Stakeholder Inputs'!E26","v":0},{"$f":"'Stakeholder Inputs'!F26","v":0},{"$f":"'Stakeholder Inputs'!I26","v":false},13,0,13,0,0,0,false,0,0,0,57,33,{"$f":"IF('Stakeholder Inputs'!H26<>0,'Stakeholder Inputs'!H26,\"\")","v":""}]
[16,18,{"$f":"'Stakeholder Inputs'!B27","v":0},{"$f":"'Stakeholder Inputs'!C27","v":0},{"$f":"'Stakeholder Inputs'!D27","v":0},{"$f":"'Stakeholder Inputs'!E27","v":0},{"$f":"'Stakeholder Inputs'!F27","v":0},{"$f":"'Stakeholder Inputs'!I27","v":false},13,0,13,0,0,0,false,0,0,0,3,87,{"$f":"IF('Stakeholder Inputs'!H27<>0,'Stakeholder Inputs'!H27,\"\")","v":""}]
[17,19,{"$f":"'Stakeholder Inputs'!B28","v":0},{"$f":"'Stakeholder Inputs'!C28","v":0},{"$f":"'Stakeholder Inputs'!D28","v":0},{"$f":"'Stakeholder Inputs'!E28","v":0},{"$f":"'Stakeholder Inputs'!F28","v":0},{"$f":"'Stakeholder Inputs'!I28","v":false},13,0,13,0,0,0,false,0,0,0,11,79,{"$f":"IF('Stakeholder Inputs'!H28<>0,'Stakeholder Inputs'!H28,\"\")","v":""}]
[18,20,{"$f":"'Stakeholder Inputs'!B29","v":0},{"$f":"'Stakeholder Inputs'!C29","v":0},{"$f":"'Stakeholder Inputs'!D29","v":0},{"$f":"'Stakeholder Inputs'!E29","v":0},{"$f":"'Stakeholder Inputs'!F29","v":0},{"$f":"'Stakeholder Inputs'!I29","v":false},13,0,13,0,0,0,false,0,0,0,85,5,{"$f":"IF('Stakeholder Inputs'!H29<>0,'Stakeholder Inputs'!H29,\"\")","v":""}]
[19,21,{"$f":"'Stakeholder Inputs'!B30","v":0},{"$f":"'Stakeholder Inputs'!C30","v":0},{"$f":"'Stakeholder Inputs'!D30","v":0},{"$f":"'Stakeholder Inputs'!E30","v":0},{"$f":"'Stakeholder Inputs'!F30","v":0},{"$f":"'Stakeholder Inputs'!I30","v":false},13,0,13,0,0,0,false,0,0,0,4,86,{"$f":"IF('Stakeholder Inputs'!H30<>0,'Stakeholder Inputs'!H30,\"\")","v":""}]
[20,22,{"$f":"'Stakeholder Inputs'!B31","v":0},{"$f":"'Stakeholder Inputs'!C31","v":0},{"$f":"'Stakeholder Inputs'!D31","v":0},{"$f":"'Stakeholder Inputs'!E31","v":0},{"$f":"'Stakeholder Inputs'!F31","v":0},{"$f":"'Stakeholder Inputs'!I31","v":false},13,0,13,0,0,0,false,0,0,0,57,33,{"$f":"IF('Stakeholder Inputs'!H31<>0,'Stakeholder Inputs'!H31,\"\")","v":""}]
[21,23,{"$f":"'Stakeholder Inputs'!B32","v":0},{"$f":"'Stakeholder Inputs'!C32","v":0},{"$f":"'Stakeholder Inputs'!D32","v":0},{"$f":"'Stakeholder Inputs'!E32","v":0},{"$f":"'Stakeholder Inputs'!F32","v":0},{"$f":"'Stakeholder Inputs'!I32","v":false},13,0,13,0,0,0,false,0,0,0,43,47,{"$f":"IF('Stakeholder Inputs'!H32<>0,'Stakeholder Inputs'!H32,\"\")","v":""}]
[22,24,{"$f":"'Stakeholder Inputs'!B33","v":0},{"$f":"'Stakeholder Inputs'!C33","v":0},{"$f":"'Stakeholder Inputs'!D33","v":0},{"$f":"'Stakeholder Inputs'!E33","v":0},{"$f":"'Stakeholder Inputs'!F33","v":0},{"$f":"'Stakeholder Inputs'!I33","v":false},13,0,13,0,0,0,false,0,0,0,21,69,{"$f":"IF('Stakeholder Inputs'!H33<>0,'Stakeholder Inputs'!H33,\"\")","v":""}]
[23,25,{"$f":"'Stakeholder Inputs'!B34","v":0},{"$f":"'Stakeholder Inputs'!C34","v":0},{"$f":"'Stakeholder Inputs'!D34","v":0},{"$f":"'Stakeholder Inputs'!E34","v":0},{"$f":"'Stakeholder Inputs'!F34","v":0},{"$f":"'Stakeholder Inputs'!I34","v":false},13,0,13,0,0,0,false,0,0,0,86,4,{"$f":"IF('Stakeholder Inputs'!H34<>0,'Stakeholder Inputs'!H34,\"\")","v":""}]
[24,26,{"$f":"'Stakeholder Inputs'!B35","v":0},{"$f":"'Stakeholder Inputs'!C35","v":0},{"$f":"'Stakeholder Inputs'!D35","v":0},{"$f":"'Stakeholder Inputs'!E35","v":0},{"$f":"'Stakeholder Inputs'!F35","v":0},{"$f":"'Stakeholder Inputs'!I35","v":false},13,0,13,0,0,0,false,0,0,0,37,53,{"$f":"IF('Stakeholder Inputs'!H35<>0,'Stakeholder Inputs'!H35,\"\")","v":""}]
[25,27,{"$f":"'Stakeholder Inputs'!B36","v":0},{"$f":"'Stakeholder Inputs'!C36","v":0},{"$f":"'Stakeholder Inputs'!D36","v":0},{"$f":"'Stakeholder Inputs'!E36","v":0},{"$f":"'Stakeholder Inputs'!F36","v":0},{"$f":"'Stakeholder Inputs'!I36","v":false},13,0,13,0,0,0,false,0,0,0,48,42,{"$f":"IF('Stakeholder Inputs'!H36<>0,'Stakeholder Inputs'!H36,\"\")","v":""}]
[26,28,{"$f":"'Stakeholder Inputs'!B37","v":0},{"$f":"'Stakeholder Inputs'!C37","v":0},{"$f":"'Stakeholder Inputs'!D37","v":0},{"$f":"'Stakeholder Inputs'!E37","v":0},{"$f":"'Stakeholder Inputs'!F37","v":0},{"$f":"'Stakeholder Inputs'!I37","v":false},13,0,13,0,0,0,false,0,0,0,63,27,{"$f":"IF('Stakeholder Inputs'!H37<>0,'Stakeholder Inputs'!H37,\"\")","v":""}]
[27,29,{"$f":"'Stakeholder Inputs'!B38","v":0},{"$f":"'Stakeholder Inputs'!C38","v":0},{"$f":"'Stakeholder Inputs'!D38","v":0},{"$f":"'Stakeholder Inputs'!E38","v":0},{"$f":"'Stakeholder Inputs'!F38","v":0},{"$f":"'Stakeholder Inputs'!I38","v":false},13,0,13,0,0,0,false,0,0,0,34,56,{"$f":"IF('Stakeholder Inputs'!H38<>0,'Stakeholder Inputs'!H38,\"\")","v":""}]
[28,30,{"$f":"'Stakeholder Inputs'!B39","v":0},{"$f":"'Stakeholder Inputs'!C39","v":0},{"$f":"'Stakeholder Inputs'!D39","v":0},{"$f":"'Stakeholder Inputs'!E39","v":0},{"$f":"'Stakeholder Inputs'!F39","v":0},{"$f":"'Stakeholder Inputs'!I39","v":false},13,0,13,0,0,0,false,0,0,0,32,58,{"$f":"IF('Stakeholder Inputs'!H39<>0,'Stakeholder Inputs'!H39,\"\")","v":""}]
[29,31,{"$f":"'Stakeholder Inputs'!B40","v":0},{"$f":"'Stakeholder Inputs'!C40","v":0},{"$f":"'Stakeholder Inputs'!D40","v":0},{"$f":"'Stakeholder Inputs'!E40","v":0},{"$f":"'Stakeholder Inputs'!F40","v":0},{"$f":"'Stakeholder Inputs'!I40","v":false},13,0,13,0,0,0,false,0,0,0,66,24,{"$f":"IF('Stakeholder Inputs'!H40<>0,'Stakeholder Inputs'!H40,\"\")","v":""}]
[30,32,{"$f":"'Stakeholder Inputs'!B41","v":0},{"$f":"'Stakeholder Inputs'!C41","v":0},{"$f":"'Stakeholder Inputs'!D41","v":0},{"$f":"'Stakeholder Inputs'!E41","v":0},{"$f":"'Stakeholder Inputs'!F41","v":0},{"$f":"'Stakeholder Inputs'!I41","v":false},13,0,13,0,0,0,false,0,0,0,65,25,{"$f":"IF('Stakeholder Inputs'!H41<>0,'Stakeholder Inputs'!H41,\"\")","v":""}]
[31,33,{"$f":"'Stakeholder Inputs'!B42","v":0},{"$f":"'Stakeholder Inputs'!C42","v":0},{"$f":"'Stakeholder Inputs'!D42","v":0},{"$f":"'Stakeholder Inputs'!E42","v":0},{"$f":"'Stakeholder Inputs'!F42","v":0},{"$f":"'Stakeholder Inputs'!I42","v":false},13,0,13,0,0,0,false,0,0,0,15,75,{"$f":"IF('Stakeholder Inputs'!H42<>0,'Stakeholder Inputs'!H42,\"\")","v":""}]
[32,34,{"$f":"'Stakeholder Inputs'!B43","v":0},{"$f":"'Stakeholder Inputs'!C43","v":0},{"$f":"'Stakeholder Inputs'!D43","v":0},{"$f":"'Stakeholder Inputs'!E43","v":0},{"$f":"'Stakeholder Inputs'!F43","v":0},{"$f":"'Stakeholder Inputs'!I43","v":false},13,0,13,0,0,0,false,0,0,0,15,75,{"$f":"IF('Stakeholder Inputs'!H43<>0,'Stakeholder Inputs'!H43,\"\")","v":""}]
[33,35,{"$f":"'Stakeholder Inputs'!B44","v":0},{"$f":"'Stakeholder Inputs'!C44","v":0},{"$f":"'Stakeholder Inputs'!D44","v":0},{"$f":"'Stakeholder Inputs'!E44","v":0},{"$f":"'Stakeholder Inputs'!F44","v":0},{"$f":"'Stakeholder Inputs'!I44","v":false},{"$f":"(10-E44+configuration_distanceoffset)","v":13},0,13,0,0,0,false,{"$f":"IFERROR(VLOOKUP(D44,table_quadrants_number,7,FALSE),0)","v":0},{"$f":"IFERROR(VLOOKUP(P44,table_quadrants_angles,2,FALSE)+S44,0)","v":0},0,37,53,{"$f":"IF('Stakeholder Inputs'!H44<>0,'Stakeholder Inputs'!H44,\"\")","v":""}]
[34,36,{"$f":"'Stakeholder Inputs'!B45","v":0},{"$f":"'Stakeholder Inputs'!C45","v":0},{"$f":"'Stakeholder Inputs'!D45","v":0},{"$f":"'Stakeholder Inputs'!E45","v":0},{"$f":"'Stakeholder Inputs'!F45","v":0},{"$f":"'Stakeholder Inputs'!I45","v":false},13,0,13,0,0,0,false,0,0,0,1,89,{"$f":"IF('Stakeholder Inputs'!H45<>0,'Stakeholder Inputs'!H45,\"\")","v":""}]
[35,37,{"$f":"'Stakeholder Inputs'!B46","v":0},{"$f":"'Stakeholder Inputs'!C46","v":0},{"$f":"'Stakeholder Inputs'!D46","v":0},{"$f":"'Stakeholder Inputs'!E46","v":0},{"$f":"'Stakeholder Inputs'!F46","v":0},{"$f":"'Stakeholder Inputs'!I46","v":false},13,0,13,0,0,0,false,0,0,0,8,82,{"$f":"IF('Stakeholder Inputs'!H46<>0,'Stakeholder Inputs'!H46,\"\")","v":""}]
[36,38,{"$f":"'Stakeholder Inputs'!B47","v":0},{"$f":"'Stakeholder Inputs'!C47","v":0},{"$f":"'Stakeholder Inputs'!D47","v":0},{"$f":"'Stakeholder Inputs'!E47","v":0},{"$f":"'Stakeholder Inputs'!F47","v":0},{"$f":"'Stakeholder Inputs'!I47","v":false},13,0,13,0,0,0,false,0,0,0,70,20,{"$f":"IF('Stakeholder Inputs'!H47<>0,'Stakeholder Inputs'!H47,\"\")","v":""}]
[37,39,{"$f":"'Stakeholder Inputs'!B48","v":0},{"$f":"'Stakeholder Inputs'!C48","v":0},{"$f":"'Stakeholder Inputs'!D48","v":0},{"$f":"'Stakeholder Inputs'!E48","v":0},{"$f":"'Stakeholder Inputs'!F48","v":0},{"$f":"'Stakeholder Inputs'!I48","v":false},13,0,13,0,0,0,false,0,0,0,27,63,{"$f":"IF('Stakeholder Inputs'!H48<>0,'Stakeholder Inputs'!H48,\"\")","v":""}]
[38,40,{"$f":"'Stakeholder Inputs'!B49","v":0},{"$f":"'Stakeholder Inputs'!C49","v":0},{"$f":"'Stakeholder Inputs'!D49","v":0},{"$f":"'Stakeholder Inputs'!E49","v":0},{"$f":"'Stakeholder Inputs'!F49","v":0},{"$f":"'Stakeholder Inputs'!I49","v":false},13,0,13,0,0,0,false,0,0,0,1,89,{"$f":"IF('Stakeholder Inputs'!H49<>0,'Stakeholder Inputs'!H49,\"\")","v":""}]
[39,41,{"$f":"'Stakeholder Inputs'!B50","v":0},{"$f":"'Stakeholder Inputs'!C50","v":0},{"$f":"'Stakeholder Inputs'!D50","v":0},{"$f":"'Stakeholder Inputs'!E50","v":0},{"$f":"'Stakeholder Inputs'!F50","v":0},{"$f":"'Stakeholder Inputs'!I50","v":false},13,0,13,0,0,0,false,0,0,0,68,22,{"$f":"IF('Stakeholder Inputs'!H50<>0,'Stakeholder Inputs'!H50,\"\")","v":""}]
[40,42,{"$f":"'Stakeholder Inputs'!B51","v":0},{"$f":"'Stakeholder Inputs'!C51","v":0},{"$f":"'Stakeholder Inputs'!D51","v":0},{"$f":"'Stakeholder Inputs'!E51","v":0},{"$f":"'Stakeholder Inputs'!F51","v":0},{"$f":"'Stakeholder Inputs'!I51","v":false},13,0,13,0,0,0,false,0,0,0,42,48,{"$f":"IF('Stakeholder Inputs'!H51<>0,'Stakeholder Inputs'!H51,\"\")","v":""}]
[41,43,{"$f":"'Stakeholder Inputs'!B52","v":0},{"$f":"'Stakeholder Inputs'!C52","v":0},{"$f":"'Stakeholder Inputs'!D52","v":0},{"$f":"'Stakeholder Inputs'!E52","v":0},{"$f":"'Stakeholder Inputs'!F52","v":0},{"$f":"'Stakeholder Inputs'!I52","v":false},13,0,13,0,0,0,false,0,0,0,81,9,{"$f":"IF('Stakeholder Inputs'!H52<>0,'Stakeholder Inputs'!H52,\"\")","v":""}]
[42,44,{"$f":"'Stakeholder Inputs'!B53","v":0},{"$f":"'Stakeholder Inputs'!C53","v":0},{"$f":"'Stakeholder Inputs'!D53","v":0},{"$f":"'Stakeholder Inputs'!E53","v":0},{"$f":"'Stakeholder Inputs'!F53","v":0},{"$f":"'Stakeholder Inputs'!I53","v":false},13,0,13,0,0,0,false,0,0,0,0,90,{"$f":"IF('Stakeholder Inputs'!H53<>0,'Stakeholder Inputs'!H53,\"\")","v":""}]
[43,45,{"$f":"'Stakeholder Inputs'!B54","v":0},{"$f":"'Stakeholder Inputs'!C54","v":0},{"$f":"'Stakeholder Inputs'!D54","v":0},{"$f":"'Stakeholder Inputs'!E54","v":0},{"$f":"'Stakeholder Inputs'!F54","v":0},{"$f":"'Stakeholder Inputs'!I54","v":false},13,0,13,0,0,0,false,0,0,0,29,61,{"$f":"IF('Stakeholder Inputs'!H54<>0,'Stakeholder Inputs'!H54,\"\")","v":""}]
[44,46,{"$f":"'Stakeholder Inputs'!B55","v":0},{"$f":"'Stakeholder Inputs'!C55","v":0},{"$f":"'Stakeholder Inputs'!D55","v":0},{"$f":"'Stakeholder Inputs'!E55","v":0},{"$f":"'Stakeholder Inputs'!F55","v":0},{"$f":"'Stakeholder Inputs'!I55","v":false},13,0,13,0,0,0,false,0,0,0,89,1,{"$f":"IF('Stakeholder Inputs'!H55<>0,'Stakeholder Inputs'!H55,\"\")","v":""}]
[45,47,{"$f":"'Stakeholder Inputs'!B56","v":0},{"$f":"'Stakeholder Inputs'!C56","v":0},{"$f":"'Stakeholder Inputs'!D56","v":0},{"$f":"'Stakeholder Inputs'!E56","v":0},{"$f":"'Stakeholder Inputs'!F56","v":0},{"$f":"'Stakeholder Inputs'!I56","v":false},13,0,13,0,0,0,false,0,0,0,38,52,{"$f":"IF('Stakeholder Inputs'!H56<>0,'Stakeholder Inputs'!H56,\"\")","v":""}]
[46,48,{"$f":"'Stakeholder Inputs'!B57","v":0},{"$f":"'Stakeholder Inputs'!C57","v":0},{"$f":"'Stakeholder Inputs'!D57","v":0},{"$f":"'Stakeholder Inputs'!E57","v":0},{"$f":"'Stakeholder Inputs'!F57","v":0},{"$f":"'Stakeholder Inputs'!I57","v":false},13,0,13,0,0,0,false,0,0,0,81,9,{"$f":"IF('Stakeholder Inputs'!H57<>0,'Stakeholder Inputs'!H57,\"\")","v":""}]
[47,49,{"$f":"'Stakeholder Inputs'!B58","v":0},{"$f":"'Stakeholder Inputs'!C58","v":0},{"$f":"'Stakeholder Inputs'!D58","v":0},{"$f":"'Stakeholder Inputs'!E58","v":0},{"$f":"'Stakeholder Inputs'!F58","v":0},{"$f":"'Stakeholder Inputs'!I58","v":false},13,0,13,0,0,0,false,0,0,0,81,9,{"$f":"IF('Stakeholder Inputs'!H58<>0,'Stakeholder Inputs'!H58,\"\")","v":""}]
[48,50,{"$f":"'Stakeholder Inputs'!B59","v":0},{"$f":"'Stakeholder Inputs'!C59","v":0},{"$f":"'Stakeholder Inputs'!D59","v":0},{"$f":"'Stakeholder Inputs'!E59","v":0},{"$f":"'Stakeholder Inputs'!F59","v":0},{"$f":"'Stakeholder Inputs'!I59","v":false},13,0,13,0,0,0,false,0,0,0,18,72,{"$f":"IF('Stakeholder Inputs'!H59<>0,'Stakeholder Inputs'!H59,\"\")","v":""}]
[49,51,{"$f":"'Stakeholder Inputs'!B60","v":0},{"$f":"'Stakeholder Inputs'!C60","v":0},{"$f":"'Stakeholder Inputs'!D60","v":0},{"$f":"'Stakeholder Inputs'!E60","v":0},{"$f":"'Stakeholder Inputs'!F60","v":0},{"$f":"'Stakeholder Inputs'!I60","v":false},13,0,13,0,0,0,false,0,0,0,65,25,{"$f":"IF('Stakeholder Inputs'!H60<>0,'Stakeholder Inputs'!H60,\"\")","v":""}]
[50,52,{"$f":"'Stakeholder Inputs'!B61","v":0},{"$f":"'Stakeholder Inputs'!C61","v":0},{"$f":"'Stakeholder Inputs'!D61","v":0},{"$f":"'Stakeholder Inputs'!E61","v":0},{"$f":"'Stakeholder Inputs'!F61","v":0},{"$f":"'Stakeholder Inputs'!I61","v":false},13,0,13,0,0,0,false,0,0,0,86,4,{"$f":"IF('Stakeholder Inputs'!H61<>0,'Stakeholder Inputs'!H61,\"\")","v":""}]
[51,53,{"$f":"'Stakeholder Inputs'!B62","v":0},{"$f":"'Stakeholder Inputs'!C62","v":0},{"$f":"'Stakeholder Inputs'!D62","v":0},{"$f":"'Stakeholder Inputs'!E62","v":0},{"$f":"'Stakeholder Inputs'!F62","v":0},{"$f":"'Stakeholder Inputs'!I62","v":false},13,0,13,0,0,0,false,0,0,0,64,26,{"$f":"IF('Stakeholder Inputs'!H62<>0,'Stakeholder Inputs'!H62,\"\")","v":""}]
[52,54,{"$f":"'Stakeholder Inputs'!B63","v":0},{"$f":"'Stakeholder Inputs'!C63","v":0},{"$f":"'Stakeholder Inputs'!D63","v":0},{"$f":"'Stakeholder Inputs'!E63","v":0},{"$f":"'Stakeholder Inputs'!F63","v":0},{"$f":"'Stakeholder Inputs'!I63","v":false},13,0,13,0,0,0,false,0,0,0,56,34,{"$f":"IF('Stakeholder Inputs'!H63<>0,'Stakeholder Inputs'!H63,\"\")","v":""}]
[53,55,{"$f":"'Stakeholder Inputs'!B64","v":0},{"$f":"'Stakeholder Inputs'!C64","v":0},{"$f":"'Stakeholder Inputs'!D64","v":0},{"$f":"'Stakeholder Inputs'!E64","v":0},{"$f":"'Stakeholder Inputs'!F64","v":0},{"$f":"'Stakeholder Inputs'!I64","v":false},13,0,13,0,0,0,false,0,0,0,63,27,{"$f":"IF('Stakeholder Inputs'!H64<>0,'Stakeholder Inputs'!H64,\"\")","v":""}]
[54,56,{"$f":"'Stakeholder Inputs'!B65","v":0},{"$f":"'Stakeholder Inputs'!C65","v":0},{"$f":"'Stakeholder Inputs'!D65","v":0},{"$f":"'Stakeholder Inputs'!E65","v":0},{"$f":"'Stakeholder Inputs'!F65","v":0},{"$f":"'Stakeholder Inputs'!I65","v":false},13,0,13,0,0,0,false,0,0,0,4,86,{"$f":"IF('Stakeholder Inputs'!H65<>0,'Stakeholder Inputs'!H65,\"\")","v":""}]
[55,57,{"$f":"'Stakeholder Inputs'!B66","v":0},{"$f":"'Stakeholder Inputs'!C66","v":0},{"$f":"'Stakeholder Inputs'!D66","v":0},{"$f":"'Stakeholder Inputs'!E66","v":0},{"$f":"'Stakeholder Inputs'!F66","v":0},{"$f":"'Stakeholder Inputs'!I66","v":false},13,0,13,0,0,0,false,0,0,0,1,89,{"$f":"IF('Stakeholder Inputs'!H66<>0,'Stakeholder Inputs'!H66,\"\")","v":""}]
[56,58,{"$f":"'Stakeholder Inputs'!B67","v":0},{"$f":"'Stakeholder Inputs'!C67","v":0},{"$f":"'Stakeholder Inputs'!D67","v":0},{"$f":"'Stakeholder Inputs'!E67","v":0},{"$f":"'Stakeholder Inputs'!F67","v":0},{"$f":"'Stakeholder Inputs'!I67","v":false},13,0,13,0,0,0,false,0,0,0,54,36,{"$f":"IF('Stakeholder Inputs'!H67<>0,'Stakeholder Inputs'!H67,\"\")","v":""}]
[57,59,{"$f":"'Stakeholder Inputs'!B68","v":0},{"$f":"'Stakeholder Inputs'!C68","v":0},{"$f":"'Stakeholder Inputs'!D68","v":0},{"$f":"'Stakeholder Inputs'!E68","v":0},{"$f":"'Stakeholder Inputs'!F68","v":0},{"$f":"'Stakeholder Inputs'!I68","v":false},13,0,13,0,0,0,false,0,0,0,65,25,{"$f":"IF('Stakeholder Inputs'!H68<>0,'Stakeholder Inputs'!H68,\"\")","v":""}]
[58,60,{"$f":"'Stakeholder Inputs'!B69","v":0},{"$f":"'Stakeholder Inputs'!C69","v":0},{"$f":"'Stakeholder Inputs'!D69","v":0},{"$f":"'Stakeholder Inputs'!E69","v":0},{"$f":"'Stakeholder Inputs'!F69","v":0},{"$f":"'Stakeholder Inputs'!I69","v":false},13,0,13,0,0,0,false,0,0,0,76,14,{"$f":"IF('Stakeholder Inputs'!H69<>0,'Stakeholder Inputs'!H69,\"\")","v":""}]
[59,61,{"$f":"'Stakeholder Inputs'!B70","v":0},{"$f":"'Stakeholder Inputs'!C70","v":0},{"$f":"'Stakeholder Inputs'!D70","v":0},{"$f":"'Stakeholder Inputs'!E70","v":0},{"$f":"'Stakeholder Inputs'!F70","v":0},{"$f":"'Stakeholder Inputs'!I70","v":false},13,0,13,0,0,0,false,0,0,0,76,14,{"$f":"IF('Stakeholder Inputs'!H70<>0,'Stakeholder Inputs'!H70,\"\")","v":""}]
[60,62,{"$f":"'Stakeholder Inputs'!B71","v":0},{"$f":"'Stakeholder Inputs'!C71","v":0},{"$f":"'Stakeholder Inputs'!D71","v":0},{"$f":"'Stakeholder Inputs'!E71","v":0},{"$f":"'Stakeholder Inputs'!F71","v":0},{"$f":"'Stakeholder Inputs'!I71","v":false},13,0,13,0,0,0,false,0,0,0,32,58,{"$f":"IF('Stakeholder Inputs'!H71<>0,'Stakeholder Inputs'!H71,\"\")","v":""}]
[61,63,{"$f":"'Stakeholder Inputs'!B72","v":0},{"$f":"'Stakeholder Inputs'!C72","v":0},{"$f":"'Stakeholder Inputs'!D72","v":0},{"$f":"'Stakeholder Inputs'!E72","v":0},{"$f":"'Stakeholder Inputs'!F72","v":0},{"$f":"'Stakeholder Inputs'!I72","v":false},13,0,13,0,0,0,false,0,0,0,53,37,{"$f":"IF('Stakeholder Inputs'!H72<>0,'Stakeholder Inputs'!H72,\"\")","v":""}]
[62,64,{"$f":"'Stakeholder Inputs'!B73","v":0},{"$f":"'Stakeholder Inputs'!C73","v":0},{"$f":"'Stakeholder Inputs'!D73","v":0},{"$f":"'Stakeholder Inputs'!E73","v":0},{"$f":"'Stakeholder Inputs'!F73","v":0},{"$f":"'Stakeholder Inputs'!I73","v":false},13,0,13,0,0,0,false,0,0,0,53,37,{"$f":"IF('Stakeholder Inputs'!H73<>0,'Stakeholder Inputs'!H73,\"\")","v":""}]
[63,65,{"$f":"'Stakeholder Inputs'!B74","v":0},{"$f":"'Stakeholder Inputs'!C74","v":0},{"$f":"'Stakeholder Inputs'!D74","v":0},{"$f":"'Stakeholder Inputs'!E74","v":0},{"$f":"'Stakeholder Inputs'!F74","v":0},{"$f":"'Stakeholder Inputs'!I74","v":false},13,0,13,0,0,0,false,0,0,0,26,64,{"$f":"IF('Stakeholder Inputs'!H74<>0,'Stakeholder Inputs'!H74,\"\")","v":""}]
[64,66,{"$f":"'Stakeholder Inputs'!B75","v":0},{"$f":"'Stakeholder Inputs'!C75","v":0},{"$f":"'Stakeholder Inputs'!D75","v":0},{"$f":"'Stakeholder Inputs'!E75","v":0},{"$f":"'Stakeholder Inputs'!F75","v":0},{"$f":"'Stakeholder Inputs'!I75","v":false},13,0,13,0,0,0,false,0,0,0,61,29,{"$f":"IF('Stakeholder Inputs'!H75<>0,'Stakeholder Inputs'!H75,\"\")","v":""}]
[65,67,{"$f":"'Stakeholder Inputs'!B76","v":0},{"$f":"'Stakeholder Inputs'!C76","v":0},{"$f":"'Stakeholder Inputs'!D76","v":0},{"$f":"'Stakeholder Inputs'!E76","v":0},{"$f":"'Stakeholder Inputs'!F76","v":0},{"$f":"'Stakeholder Inputs'!I76","v":false},{"$f":"(10-E76+configuration_distanceoffset)","v":13},0,13,0,0,0,false,{"$f":"IFERROR(VLOOKUP(D76,table_quadrants_number,7,FALSE),0)","v":0},{"$f":"IFERROR(VLOOKUP(P76,table_quadrants_angles,2,FALSE)+S76,0)","v":0},0,33,57,{"$f":"IF('Stakeholder Inputs'!H76<>0,'Stakeholder Inputs'!H76,\"\")","v":""}]
[66,68,{"$f":"'Stakeholder Inputs'!B77","v":0},{"$f":"'Stakeholder Inputs'!C77","v":0},{"$f":"'Stakeholder Inputs'!D77","v":0},{"$f":"'Stakeholder Inputs'!E77","v":0},{"$f":"'Stakeholder Inputs'!F77","v":0},{"$f":"'Stakeholder Inputs'!I77","v":false},13,{"$f":"C77","v":0},{"$f":"I77*COS(R77)","v":13},{"$f":"I77*SIN(R77)","v":0},{"$f":"F77","v":0},{"$f":"G77","v":0},{"$f":"H77","v":false},0,0,{"$f":"RADIANS(Q77)","v":0},{"$f":"90-T77","v":72},18,{"$f":"IF('Stakeholder Inputs'!H77<>0,'Stakeholder Inputs'!H77,\"\")","v":""}]
[67,69,{"$f":"'Stakeholder Inputs'!B78","v":0},{"$f":"'Stakeholder Inputs'!C78","v":0},{"$f":"'Stakeholder Inputs'!D78","v":0},{"$f":"'Stakeholder Inputs'!E78","v":0},{"$f":"'Stakeholder Inputs'!F78","v":0},{"$f":"'Stakeholder Inputs'!I78","v":false},13,0,13,0,0,0,false,0,0,0,74,16,{"$f":"IF('Stakeholder Inputs'!H78<>0,'Stakeholder Inputs'!H78,\"\")","v":""}]
[68,70,{"$f":"'Stakeholder Inputs'!B79","v":0},{"$f":"'Stakeholder Inputs'!C79","v":0},{"$f":"'Stakeholder Inputs'!D79","v":0},{"$f":"'Stakeholder Inputs'!E79","v":0},{"$f":"'Stakeholder Inputs'!F79","v":0},{"$f":"'Stakeholder Inputs'!I79","v":false},13,0,13,0,0,0,false,0,0,0,37,53,{"$f":"IF('Stakeholder Inputs'!H79<>0,'Stakeholder Inputs'!H79,\"\")","v":""}]
[69,71,{"$f":"'Stakeholder Inputs'!B80","v":0},{"$f":"'Stakeholder Inputs'!C80","v":0},{"$f":"'Stakeholder Inputs'!D80","v":0},{"$f":"'Stakeholder Inputs'!E80","v":0},{"$f":"'Stakeholder Inputs'!F80","v":0},{"$f":"'Stakeholder Inputs'!I80","v":false},13,0,13,0,0,0,false,0,0,0,83,7,{"$f":"IF('Stakeholder Inputs'!H80<>0,'Stakeholder Inputs'!H80,\"\")","v":""}]
[70,72,{"$f":"'Stakeholder Inputs'!B81","v":0},{"$f":"'Stakeholder Inputs'!C81","v":0},{"$f":"'Stakeholder Inputs'!D81","v":0},{"$f":"'Stakeholder Inputs'!E81","v":0},{"$f":"'Stakeholder Inputs'!F81","v":0},{"$f":"'Stakeholder Inputs'!I81","v":false},13,0,13,0,0,0,false,0,0,0,49,41,{"$f":"IF('Stakeholder Inputs'!H81<>0,'Stakeholder Inputs'!H81,\"\")","v":""}]
[71,73,{"$f":"'Stakeholder Inputs'!B82","v":0},{"$f":"'Stakeholder Inputs'!C82","v":0},{"$f":"'Stakeholder Inputs'!D82","v":0},{"$f":"'Stakeholder Inputs'!E82","v":0},{"$f":"'Stakeholder Inputs'!F82","v":0},{"$f":"'Stakeholder Inputs'!I82","v":false},13,0,13,0,0,0,false,0,0,0,8,82,{"$f":"IF('Stakeholder Inputs'!H82<>0,'Stakeholder Inputs'!H82,\"\")","v":""}]
[72,74,{"$f":"'Stakeholder Inputs'!B83","v":0},{"$f":"'Stakeholder Inputs'!C83","v":0},{"$f":"'Stakeholder Inputs'!D83","v":0},{"$f":"'Stakeholder Inputs'!E83","v":0},{"$f":"'Stakeholder Inputs'!F83","v":0},{"$f":"'Stakeholder Inputs'!I83","v":false},13,0,13,0,0,0,false,0,0,0,67,23,{"$f":"IF('Stakeholder Inputs'!H83<>0,'Stakeholder Inputs'!H83,\"\")","v":""}]
[73,75,{"$f":"'Stakeholder Inputs'!B84","v":0},{"$f":"'Stakeholder Inputs'!C84","v":0},{"$f":"'Stakeholder Inputs'!D84","v":0},{"$f":"'Stakeholder Inputs'!E84","v":0},{"$f":"'Stakeholder Inputs'!F84","v":0},{"$f":"'Stakeholder Inputs'!I84","v":false},13,0,13,0,0,0,false,0,0,0,19,71,{"$f":"IF('Stakeholder Inputs'!H84<>0,'Stakeholder Inputs'!H84,\"\")","v":""}]
[74,76,{"$f":"'Stakeholder Inputs'!B85","v":0},{"$f":"'Stakeholder Inputs'!C85","v":0},{"$f":"'Stakeholder Inputs'!D85","v":0},{"$f":"'Stakeholder Inputs'!E85","v":0},{"$f":"'Stakeholder Inputs'!F85","v":0},{"$f":"'Stakeholder Inputs'!I85","v":false},13,0,13,0,0,0,false,0,0,0,56,34,{"$f":"IF('Stakeholder Inputs'!H85<>0,'Stakeholder Inputs'!H85,\"\")","v":""}]
[75,77,{"$f":"'Stakeholder Inputs'!B86","v":0},{"$f":"'Stakeholder Inputs'!C86","v":0},{"$f":"'Stakeholder Inputs'!D86","v":0},{"$f":"'Stakeholder Inputs'!E86","v":0},{"$f":"'Stakeholder Inputs'!F86","v":0},{"$f":"'Stakeholder Inputs'!I86","v":false},13,0,13,0,0,0,false,0,0,0,64,26,{"$f":"IF('Stakeholder Inputs'!H86<>0,'Stakeholder Inputs'!H86,\"\")","v":""}]
[76,78,{"$f":"'Stakeholder Inputs'!B87","v":0},{"$f":"'Stakeholder Inputs'!C87","v":0},{"$f":"'Stakeholder Inputs'!D87","v":0},{"$f":"'Stakeholder Inputs'!E87","v":0},{"$f":"'Stakeholder Inputs'!F87","v":0},{"$f":"'Stakeholder Inputs'!I87","v":false},{"$f":"(10-E87+configuration_distanceoffset)","v":13},{"$f":"C87","v":0},{"$f":"I87*COS(R87)","v":13},{"$f":"I87*SIN(R87)","v":0},{"$f":"F87","v":0},{"$f":"G87","v":0},{"$f":"H87","v":false},{"$f":"IFERROR(VLOOKUP(D87,table_quadrants_number,7,FALSE),0)","v":0},{"$f":"IFERROR(VLOOKUP(P87,table_quadrants_angles,2,FALSE)+S87,0)","v":0},{"$f":"RADIANS(Q87)","v":0},{"$f":"90-T87","v":7},83,{"$f":"IF('Stakeholder Inputs'!H87<>0,'Stakeholder Inputs'!H87,\"\")","v":""}]
[77,79,{"$f":"'Stakeholder Inputs'!B88","v":0},{"$f":"'Stakeholder Inputs'!C88","v":0},{"$f":"'Stakeholder Inputs'!D88","v":0},{"$f":"'Stakeholder Inputs'!E88","v":0},{"$f":"'Stakeholder Inputs'!F88","v":0},{"$f":"'Stakeholder Inputs'!I88","v":false},13,0,13,0,0,0,false,0,0,0,33,57,{"$f":"IF('Stakeholder Inputs'!H88<>0,'Stakeholder Inputs'!H88,\"\")","v":""}]
[78,80,{"$f":"'Stakeholder Inputs'!B89","v":0},{"$f":"'Stakeholder Inputs'!C89","v":0},{"$f":"'Stakeholder Inputs'!D89","v":0},{"$f":"'Stakeholder Inputs'!E89","v":0},{"$f":"'Stakeholder Inputs'!F89","v":0},{"$f":"'Stakeholder Inputs'!I89","v":false},13,0,13,0,0,0,false,0,0,0,33,57,{"$f":"IF('Stakeholder Inputs'!H89<>0,'Stakeholder Inputs'!H89,\"\")","v":""}]
[79,81,{"$f":"'Stakeholder Inputs'!B90","v":0},{"$f":"'Stakeholder Inputs'!C90","v":0},{"$f":"'Stakeholder Inputs'!D90","v":0},{"$f":"'Stakeholder Inputs'!E90","v":0},{"$f":"'Stakeholder Inputs'!F90","v":0},{"$f":"'Stakeholder Inputs'!I90","v":false},13,0,13,0,0,0,false,0,0,0,52,38,{"$f":"IF('Stakeholder Inputs'!H90<>0,'Stakeholder Inputs'!H90,\"\")","v":""}]
[80,82,{"$f":"'Stakeholder Inputs'!B91","v":0},{"$f":"'Stakeholder Inputs'!C91","v":0},{"$f":"'Stakeholder Inputs'!D91","v":0},{"$f":"'Stakeholder Inputs'!E91","v":0},{"$f":"'Stakeholder Inputs'!F91","v":0},{"$f":"'Stakeholder Inputs'!I91","v":false},13,0,13,0,0,0,false,0,0,0,82,8,{"$f":"IF('Stakeholder Inputs'!H91<>0,'Stakeholder Inputs'!H91,\"\")","v":""}]
[81,83,{"$f":"'Stakeholder Inputs'!B92","v":0},{"$f":"'Stakeholder Inputs'!C92","v":0},{"$f":"'Stakeholder Inputs'!D92","v":0},{"$f":"'Stakeholder Inputs'!E92","v":0},{"$f":"'Stakeholder Inputs'!F92","v":0},{"$f":"'Stakeholder Inputs'!I92","v":false},13,0,13,0,0,0,false,0,0,0,39,51,{"$f":"IF('Stakeholder Inputs'!H92<>0,'Stakeholder Inputs'!H92,\"\")","v":""}]
[82,84,{"$f":"'Stakeholder Inputs'!B93","v":0},{"$f":"'Stakeholder Inputs'!C93","v":0},{"$f":"'Stakeholder Inputs'!D93","v":0},{"$f":"'Stakeholder Inputs'!E93","v":0},{"$f":"'Stakeholder Inputs'!F93","v":0},{"$f":"'Stakeholder Inputs'!I93","v":false},13,0,13,0,0,0,false,0,0,0,27,63,{"$f":"IF('Stakeholder Inputs'!H93<>0,'Stakeholder Inputs'!H93,\"\")","v":""}]
[83,85,{"$f":"'Stakeholder Inputs'!B94","v":0},{"$f":"'Stakeholder Inputs'!C94","v":0},{"$f":"'Stakeholder Inputs'!D94","v":0},{"$f":"'Stakeholder Inputs'!E94","v":0},{"$f":"'Stakeholder Inputs'!F94","v":0},{"$f":"'Stakeholder Inputs'!I94","v":false},13,0,13,0,0,0,false,0,0,0,7,83,{"$f":"IF('Stakeholder Inputs'!H94<>0,'Stakeholder Inputs'!H94,\"\")","v":""}]
[84,86,{"$f":"'Stakeholder Inputs'!B95","v":0},{"$f":"'Stakeholder Inputs'!C95","v":0},{"$f":"'Stakeholder Inputs'!D95","v":0},{"$f":"'Stakeholder Inputs'!E95","v":0},{"$f":"'Stakeholder Inputs'!F95","v":0},{"$f":"'Stakeholder Inputs'!I95","v":false},13,0,13,0,0,0,false,0,0,0,15,75,{"$f":"IF('Stakeholder Inputs'!H95<>0,'Stakeholder Inputs'!H95,\"\")","v":""}]
[85,87,{"$f":"'Stakeholder Inputs'!B96","v":0},{"$f":"'Stakeholder Inputs'!C96","v":0},{"$f":"'Stakeholder Inputs'!D96","v":0},{"$f":"'Stakeholder Inputs'!E96","v":0},{"$f":"'Stakeholder Inputs'!F96","v":0},{"$f":"'Stakeholder Inputs'!I96","v":false},13,0,13,0,0,0,false,0,0,0,88,2,{"$f":"IF('Stakeholder Inputs'!H96<>0,'Stakeholder Inputs'!H96,\"\")","v":""}]
[86,88,{"$f":"'Stakeholder Inputs'!B97","v":0},{"$f":"'Stakeholder Inputs'!C97","v":0},{"$f":"'Stakeholder Inputs'!D97","v":0},{"$f":"'Stakeholder Inputs'!E97","v":0},{"$f":"'Stakeholder Inputs'!F97","v":0},{"$f":"'Stakeholder Inputs'!I97","v":false},13,0,13,0,0,0,false,0,0,0,41,49,{"$f":"IF('Stakeholder Inputs'!H97<>0,'Stakeholder Inputs'!H97,\"\")","v":""}]
[87,89,{"$f":"'Stakeholder Inputs'!B98","v":0},{"$f":"'Stakeholder Inputs'!C98","v":0},{"$f":"'Stakeholder Inputs'!D98","v":0},{"$f":"'Stakeholder Inputs'!E98","v":0},{"$f":"'Stakeholder Inputs'!F98","v":0},{"$f":"'Stakeholder Inputs'!I98","v":false},13,0,13,0,0,0,false,0,0,0,7,83,{"$f":"IF('Stakeholder Inputs'!H98<>0,'Stakeholder Inputs'!H98,\"\")","v":""}]
[88,90,{"$f":"'Stakeholder Inputs'!B99","v":0},{"$f":"'Stakeholder Inputs'!C99","v":0},{"$f":"'Stakeholder Inputs'!D99","v":0},{"$f":"'Stakeholder Inputs'!E99","v":0},{"$f":"'Stakeholder Inputs'!F99","v":0},{"$f":"'Stakeholder Inputs'!I99","v":false},13,0,13,0,0,0,false,0,0,0,51,39,{"$f":"IF('Stakeholder Inputs'!H99<>0,'Stakeholder Inputs'!H99,\"\")","v":""}]
[89,91,{"$f":"'Stakeholder Inputs'!B100","v":0},{"$f":"'Stakeholder Inputs'!C100","v":0},{"$f":"'Stakeholder Inputs'!D100","v":0},{"$f":"'Stakeholder Inputs'!E100","v":0},{"$f":"'Stakeholder Inputs'!F100","v":0},{"$f":"'Stakeholder Inputs'!I100","v":false},13,0,13,0,0,0,false,0,0,0,29,61,{"$f":"IF('Stakeholder Inputs'!H100<>0,'Stakeholder Inputs'!H100,\"\")","v":""}]
[90,92,{"$f":"'Stakeholder Inputs'!B101","v":0},{"$f":"'Stakeholder Inputs'!C101","v":0},{"$f":"'Stakeholder Inputs'!D101","v":0},{"$f":"'Stakeholder Inputs'!E101","v":0},{"$f":"'Stakeholder Inputs'!F101","v":0},{"$f":"'Stakeholder Inputs'!I101","v":false},13,0,13,0,0,0,false,0,0,0,45,45,{"$f":"IF('Stakeholder Inputs'!H101<>0,'Stakeholder Inputs'!H101,\"\")","v":""}]
[91,93,{"$f":"'Stakeholder Inputs'!B102","v":0},{"$f":"'Stakeholder Inputs'!C102","v":0},{"$f":"'Stakeholder Inputs'!D102","v":0},{"$f":"'Stakeholder Inputs'!E102","v":0},{"$f":"'Stakeholder Inputs'!F102","v":0},{"$f":"'Stakeholder Inputs'!I102","v":false},13,0,13,0,0,0,false,0,0,0,44,46,{"$f":"IF('Stakeholder Inputs'!H102<>0,'Stakeholder Inputs'!H102,\"\")","v":""}]
[92,94,{"$f":"'Stakeholder Inputs'!B103","v":0},{"$f":"'Stakeholder Inputs'!C103","v":0},{"$f":"'Stakeholder Inputs'!D103","v":0},{"$f":"'Stakeholder Inputs'!E103","v":0},{"$f":"'Stakeholder Inputs'!F103","v":0},{"$f":"'Stakeholder Inputs'!I103","v":false},13,0,13,0,0,0,false,0,0,0,48,42,{"$f":"IF('Stakeholder Inputs'!H103<>0,'Stakeholder Inputs'!H103,\"\")","v":""}]
[93,95,{"$f":"'Stakeholder Inputs'!B104","v":0},{"$f":"'Stakeholder Inputs'!C104","v":0},{"$f":"'Stakeholder Inputs'!D104","v":0},{"$f":"'Stakeholder Inputs'!E104","v":0},{"$f":"'Stakeholder Inputs'!F104","v":0},{"$f":"'Stakeholder Inputs'!I104","v":false},13,0,13,0,0,0,false,0,0,0,58,32,{"$f":"IF('Stakeholder Inputs'!H104<>0,'Stakeholder Inputs'!H104,\"\")","v":""}]
[94,96,{"$f":"'Stakeholder Inputs'!B105","v":0},{"$f":"'Stakeholder Inputs'!C105","v":0},{"$f":"'Stakeholder Inputs'!D105","v":0},{"$f":"'Stakeholder Inputs'!E105","v":0},{"$f":"'Stakeholder Inputs'!F105","v":0},{"$f":"'Stakeholder Inputs'!I105","v":false},13,0,13,0,0,0,false,0,0,0,54,36,{"$f":"IF('Stakeholder Inputs'!H105<>0,'Stakeholder Inputs'!H105,\"\")","v":""}]
[95,97,{"$f":"'Stakeholder Inputs'!B106","v":0},{"$f":"'Stakeholder Inputs'!C106","v":0},{"$f":"'Stakeholder Inputs'!D106","v":0},{"$f":"'Stakeholder Inputs'!E106","v":0},{"$f":"'Stakeholder Inputs'!F106","v":0},{"$f":"'Stakeholder Inputs'!I106","v":false},13,0,13,0,0,0,false,0,0,0,66,24,{"$f":"IF('Stakeholder Inputs'!H106<>0,'Stakeholder Inputs'!H106,\"\")","v":""}]
[96,98,{"$f":"'Stakeholder Inputs'!B107","v":0},{"$f":"'Stakeholder Inputs'!C107","v":0},{"$f":"'Stakeholder Inputs'!D107","v":0},{"$f":"'Stakeholder Inputs'!E107","v":0},{"$f":"'Stakeholder Inputs'!F107","v":0},{"$f":"'Stakeholder Inputs'!I107","v":false},13,0,13,0,0,0,false,0,0,0,85,5,{"$f":"IF('Stakeholder Inputs'!H107<>0,'Stakeholder Inputs'!H107,\"\")","v":""}]
[97,99,{"$f":"'Stakeholder Inputs'!B108","v":0},{"$f":"'Stakeholder Inputs'!C108","v":0},{"$f":"'Stakeholder Inputs'!D108","v":0},{"$f":"'Stakeholder Inputs'!E108","v":0},{"$f":"'Stakeholder Inputs'!F108","v":0},{"$f":"'Stakeholder Inputs'!I108","v":false},13,0,13,0,0,0,false,0,0,0,68,22,{"$f":"IF('Stakeholder Inputs'!H108<>0,'Stakeholder Inputs'!H108,\"\")","v":""}]
[98,100,{"$f":"'Stakeholder Inputs'!B109","v":0},{"$f":"'Stakeholder Inputs'!C109","v":0},{"$f":"'Stakeholder Inputs'!D109","v":0},{"$f":"'Stakeholder Inputs'!E109","v":0},{"$f":"'Stakeholder Inputs'!F109","v":0},{"$f":"'Stakeholder Inputs'!I109","v":false},13,0,13,0,0,0,false,0,0,0,1,89,{"$f":"IF('Stakeholder Inputs'!H109<>0,'Stakeholder Inputs'!H109,\"\")","v":""}]
[99,101,{"$f":"'Stakeholder Inputs'!B110","v":0},{"$f":"'Stakeholder Inputs'!C110","v":0},{"$f":"'Stakeholder Inputs'!D110","v":0},{"$f":"'Stakeholder Inputs'!E110","v":0},{"$f":"'Stakeholder Inputs'!F110","v":0},{"$f":"'Stakeholder Inputs'!I110","v":false},13,0,13,0,0,0,false,0,0,0,85,5,{"$f":"IF('Stakeholder Inputs'!H110<>0,'Stakeholder Inputs'!H110,\"\")","v":""}]
[100,102,{"$f":"'Stakeholder Inputs'!B111","v":0},{"$f":"'Stakeholder Inputs'!C111","v":0},{"$f":"'Stakeholder Inputs'!D111","v":0},{"$f":"'Stakeholder Inputs'!E111","v":0},{"$f":"'Stakeholder Inputs'!F111","v":0},{"$f":"'Stakeholder Inputs'!I111","v":false},13,0,13,0,0,0,false,0,0,0,55,35,{"$f":"IF('Stakeholder Inputs'!H111<>0,'Stakeholder Inputs'!H111,\"\")","v":""}]
[101,103,{"$f":"'Stakeholder Inputs'!B112","v":0},{"$f":"'Stakeholder Inputs'!C112","v":0},{"$f":"'Stakeholder Inputs'!D112","v":0},{"$f":"'Stakeholder Inputs'!E112","v":0},{"$f":"'Stakeholder Inputs'!F112","v":0},{"$f":"'Stakeholder Inputs'!I112","v":false},13,0,13,0,0,0,false,0,0,0,57,33,{"$f":"IF('Stakeholder Inputs'!H112<>0,'Stakeholder Inputs'!H112,\"\")","v":""}]
[102,104,{"$f":"'Stakeholder Inputs'!B113","v":0},{"$f":"'Stakeholder Inputs'!C113","v":0},{"$f":"'Stakeholder Inputs'!D113","v":0},{"$f":"'Stakeholder Inputs'!E113","v":0},{"$f":"'Stakeholder Inputs'!F113","v":0},{"$f":"'Stakeholder Inputs'!I113","v":false},13,0,13,0,0,0,false,0,0,0,46,44,{"$f":"IF('Stakeholder Inputs'!H113<>0,'Stakeholder Inputs'!H113,\"\")","v":""}]
[103,105,{"$f":"'Stakeholder Inputs'!B114","v":0},{"$f":"'Stakeholder Inputs'!C114","v":0},{"$f":"'Stakeholder Inputs'!D114","v":0},{"$f":"'Stakeholder Inputs'!E114","v":0},{"$f":"'Stakeholder Inputs'!F114","v":0},{"$f":"'Stakeholder Inputs'!I114","v":false},13,0,13,0,0,0,false,0,0,0,76,14,{"$f":"IF('Stakeholder Inputs'!H114<>0,'Stakeholder Inputs'!H114,\"\")","v":""}]
[104,106,{"$f":"'Stakeholder Inputs'!B115","v":0},{"$f":"'Stakeholder Inputs'!C115","v":0},{"$f":"'Stakeholder Inputs'!D115","v":0},{"$f":"'Stakeholder Inputs'!E115","v":0},{"$f":"'Stakeholder Inputs'!F115","v":0},{"$f":"'Stakeholder Inputs'!I115","v":false},13,0,13,0,0,0,false,0,0,0,47,43,{"$f":"IF('Stakeholder Inputs'!H115<>0,'Stakeholder Inputs'!H115,\"\")","v":""}]
[105,107,{"$f":"'Stakeholder Inputs'!B116","v":0},{"$f":"'Stakeholder Inputs'!C116","v":0},{"$f":"'Stakeholder Inputs'!D116","v":0},{"$f":"'Stakeholder Inputs'!E116","v":0},{"$f":"'Stakeholder Inputs'!F116","v":0},{"$f":"'Stakeholder Inputs'!I116","v":false},13,0,13,0,0,0,false,0,0,0,67,23,{"$f":"IF('Stakeholder Inputs'!H116<>0,'Stakeholder Inputs'!H116,\"\")","v":""}]
[106,108,{"$f":"'Stakeholder Inputs'!B117","v":0},{"$f":"'Stakeholder Inputs'!C117","v":0},{"$f":"'Stakeholder Inputs'!D117","v":0},{"$f":"'Stakeholder Inputs'!E117","v":0},{"$f":"'Stakeholder Inputs'!F117","v":0},{"$f":"'Stakeholder Inputs'!I117","v":false},13,0,13,0,0,0,false,0,0,0,33,57,{"$f":"IF('Stakeholder Inputs'!H117<>0,'Stakeholder Inputs'!H117,\"\")","v":""}]
[107,109,{"$f":"'Stakeholder Inputs'!B118","v":0},{"$f":"'Stakeholder Inputs'!C118","v":0},{"$f":"'Stakeholder Inputs'!D118","v":0},{"$f":"'Stakeholder Inputs'!E118","v":0},{"$f":"'Stakeholder Inputs'!F118","v":0},{"$f":"'Stakeholder Inputs'!I118","v":false},13,0,13,0,0,0,false,0,0,0,41,49,{"$f":"IF('Stakeholder Inputs'!H118<>0,'Stakeholder Inputs'!H118,\"\")","v":""}]
[108,110,{"$f":"'Stakeholder Inputs'!B119","v":0},{"$f":"'Stakeholder Inputs'!C119","v":0},{"$f":"'Stakeholder Inputs'!D119","v":0},{"$f":"'Stakeholder Inputs'!E119","v":0},{"$f":"'Stakeholder Inputs'!F119","v":0},{"$f":"'Stakeholder Inputs'!I119","v":false},13,0,13,0,0,0,false,0,0,0,76,14,{"$f":"IF('Stakeholder Inputs'!H119<>0,'Stakeholder Inputs'!H119,\"\")","v":""}]
[109,111,{"$f":"'Stakeholder Inputs'!B120","v":0},{"$f":"'Stakeholder Inputs'!C120","v":0},{"$f":"'Stakeholder Inputs'!D120","v":0},{"$f":"'Stakeholder Inputs'!E120","v":0},{"$f":"'Stakeholder Inputs'!F120","v":0},{"$f":"'Stakeholder Inputs'!I120","v":false},13,0,13,0,0,0,false,0,0,0,5,85,{"$f":"IF('Stakeholder Inputs'!H120<>0,'Stakeholder Inputs'!H120,\"\")","v":""}]
[110,112,{"$f":"'Stakeholder Inputs'!B121","v":0},{"$f":"'Stakeholder Inputs'!C121","v":0},{"$f":"'Stakeholder Inputs'!D121","v":0},{"$f":"'Stakeholder Inputs'!E121","v":0},{"$f":"'Stakeholder Inputs'!F121","v":0},{"$f":"'Stakeholder Inputs'!I121","v":false},13,0,13,0,0,0,false,0,0,0,31,59,{"$f":"IF('Stakeholder Inputs'!H121<>0,'Stakeholder Inputs'!H121,\"\")","v":""}]
[111,113,{"$f":"'Stakeholder Inputs'!B122","v":0},{"$f":"'Stakeholder Inputs'!C122","v":0},{"$f":"'Stakeholder Inputs'!D122","v":0},{"$f":"'Stakeholder Inputs'!E122","v":0},{"$f":"'Stakeholder Inputs'!F122","v":0},{"$f":"'Stakeholder Inputs'!I122","v":false},13,0,13,0,0,0,false,0,0,0,44,46,{"$f":"IF('Stakeholder Inputs'!H122<>0,'Stakeholder Inputs'!H122,\"\")","v":""}]
[112,114,{"$f":"'Stakeholder Inputs'!B123","v":0},{"$f":"'Stakeholder Inputs'!C123","v":0},{"$f":"'Stakeholder Inputs'!D123","v":0},{"$f":"'Stakeholder Inputs'!E123","v":0},{"$f":"'Stakeholder Inputs'!F123","v":0},{"$f":"'Stakeholder Inputs'!I123","v":false},13,0,13,0,0,0,false,0,0,0,55,35,{"$f":"IF('Stakeholder Inputs'!H123<>0,'Stakeholder Inputs'!H123,\"\")","v":""}]
[113,115,{"$f":"'Stakeholder Inputs'!B124","v":0},{"$f":"'Stakeholder Inputs'!C124","v":0},{"$f":"'Stakeholder Inputs'!D124","v":0},{"$f":"'Stakeholder Inputs'!E124","v":0},{"$f":"'Stakeholder Inputs'!F124","v":0},{"$f":"'Stakeholder Inputs'!I124","v":false},13,0,13,0,0,0,false,0,0,0,81,9,{"$f":"IF('Stakeholder Inputs'!H124<>0,'Stakeholder Inputs'!H124,\"\")","v":""}]
[114,116,{"$f":"'Stakeholder Inputs'!B125","v":0},{"$f":"'Stakeholder Inputs'!C125","v":0},{"$f":"'Stakeholder Inputs'!D125","v":0},{"$f":"'Stakeholder Inputs'!E125","v":0},{"$f":"'Stakeholder Inputs'!F125","v":0},{"$f":"'Stakeholder Inputs'!I125","v":false},13,0,13,0,0,0,false,0,0,0,19,71,{"$f":"IF('Stakeholder Inputs'!H125<>0,'Stakeholder Inputs'!H125,\"\")","v":""}]
[115,117,{"$f":"'Stakeholder Inputs'!B126","v":0},{"$f":"'Stakeholder Inputs'!C126","v":0},{"$f":"'Stakeholder Inputs'!D126","v":0},{"$f":"'Stakeholder Inputs'!E126","v":0},{"$f":"'Stakeholder Inputs'!F126","v":0},{"$f":"'Stakeholder Inputs'!I126","v":false},13,0,13,0,0,0,false,0,0,0,49,41,{"$f":"IF('Stakeholder Inputs'!H126<>0,'Stakeholder Inputs'!H126,\"\")","v":""}]
[116,118,{"$f":"'Stakeholder Inputs'!B127","v":0},{"$f":"'Stakeholder Inputs'!C127","v":0},{"$f":"'Stakeholder Inputs'!D127","v":0},{"$f":"'Stakeholder Inputs'!E127","v":0},{"$f":"'Stakeholder Inputs'!F127","v":0},{"$f":"'Stakeholder Inputs'!I127","v":false},13,0,13,0,0,0,false,0,0,0,22,68,{"$f":"IF('Stakeholder Inputs'!H127<>0,'Stakeholder Inputs'!H127,\"\")","v":""}]
[117,119,{"$f":"'Stakeholder Inputs'!B128","v":0},{"$f":"'Stakeholder Inputs'!C128","v":0},{"$f":"'Stakeholder Inputs'!D128","v":0},{"$f":"'Stakeholder Inputs'!E128","v":0},{"$f":"'Stakeholder Inputs'!F128","v":0},{"$f":"'Stakeholder Inputs'!I128","v":false},13,0,13,0,0,0,false,0,0,0,36,54,{"$f":"IF('Stakeholder Inputs'!H128<>0,'Stakeholder Inputs'!H128,\"\")","v":""}]
[118,120,{"$f":"'Stakeholder Inputs'!B129","v":0},{"$f":"'Stakeholder Inputs'!C129","v":0},{"$f":"'Stakeholder Inputs'!D129","v":0},{"$f":"'Stakeholder Inputs'!E129","v":0},{"$f":"'Stakeholder Inputs'!F129","v":0},{"$f":"'Stakeholder Inputs'!I129","v":false},13,0,13,0,0,0,false,0,0,0,15,75,{"$f":"IF('Stakeholder Inputs'!H129<>0,'Stakeholder Inputs'!H129,\"\")","v":""}]
[119,121,{"$f":"'Stakeholder Inputs'!B130","v":0},{"$f":"'Stakeholder Inputs'!C130","v":0},{"$f":"'Stakeholder Inputs'!D130","v":0},{"$f":"'Stakeholder Inputs'!E130","v":0},{"$f":"'Stakeholder Inputs'!F130","v":0},{"$f":"'Stakeholder Inputs'!I130","v":false},13,0,13,0,0,0,false,0,0,0,89,1,{"$f":"IF('Stakeholder Inputs'!H130<>0,'Stakeholder Inputs'!H130,\"\")","v":""}]
[120,122,{"$f":"'Stakeholder Inputs'!B131","v":0},{"$f":"'Stakeholder Inputs'!C131","v":0},{"$f":"'Stakeholder Inputs'!D131","v":0},{"$f":"'Stakeholder Inputs'!E131","v":0},{"$f":"'Stakeholder Inputs'!F131","v":0},{"$f":"'Stakeholder Inputs'!I131","v":false},13,0,13,0,0,0,false,0,0,0,71,19,{"$f":"IF('Stakeholder Inputs'!H131<>0,'Stakeholder Inputs'!H131,\"\")","v":""}]
[121,123,{"$f":"'Stakeholder Inputs'!B132","v":0},{"$f":"'Stakeholder Inputs'!C132","v":0},{"$f":"'Stakeholder Inputs'!D132","v":0},{"$f":"'Stakeholder Inputs'!E132","v":0},{"$f":"'Stakeholder Inputs'!F132","v":0},{"$f":"'Stakeholder Inputs'!I132","v":false},13,0,13,0,0,0,false,0,0,0,84,6,{"$f":"IF('Stakeholder Inputs'!H132<>0,'Stakeholder Inputs'!H132,\"\")","v":""}]
[122,124,{"$f":"'Stakeholder Inputs'!B133","v":0},{"$f":"'Stakeholder Inputs'!C133","v":0},{"$f":"'Stakeholder Inputs'!D133","v":0},{"$f":"'Stakeholder Inputs'!E133","v":0},{"$f":"'Stakeholder Inputs'!F133","v":0},{"$f":"'Stakeholder Inputs'!I133","v":false},13,0,13,0,0,0,false,0,0,0,81,9,{"$f":"IF('Stakeholder Inputs'!H133<>0,'Stakeholder Inputs'!H133,\"\")","v":""}]
[123,125,{"$f":"'Stakeholder Inputs'!B134","v":0},{"$f":"'Stakeholder Inputs'!C134","v":0},{"$f":"'Stakeholder Inputs'!D134","v":0},{"$f":"'Stakeholder Inputs'!E134","v":0},{"$f":"'Stakeholder Inputs'!F134","v":0},{"$f":"'Stakeholder Inputs'!I134","v":false},13,0,13,0,0,0,false,0,0,0,60,30,{"$f":"IF('Stakeholder Inputs'!H134<>0,'Stakeholder Inputs'!H134,\"\")","v":""}]
[124,126,{"$f":"'Stakeholder Inputs'!B135","v":0},{"$f":"'Stakeholder Inputs'!C135","v":0},{"$f":"'Stakeholder Inputs'!D135","v":0},{"$f":"'Stakeholder Inputs'!E135","v":0},{"$f":"'Stakeholder Inputs'!F135","v":0},{"$f":"'Stakeholder Inputs'!I135","v":false},13,0,13,0,0,0,false,0,0,0,79,11,{"$f":"IF('Stakeholder Inputs'!H135<>0,'Stakeholder Inputs'!H135,\"\")","v":""}]
[125,127,{"$f":"'Stakeholder Inputs'!B136","v":0},{"$f":"'Stakeholder Inputs'!C136","v":0},{"$f":"'Stakeholder Inputs'!D136","v":0},{"$f":"'Stakeholder Inputs'!E136","v":0},{"$f":"'Stakeholder Inputs'!F136","v":0},{"$f":"'Stakeholder Inputs'!I136","v":false},13,0,13,0,0,0,false,0,0,0,90,0,{"$f":"IF('Stakeholder Inputs'!H136<>0,'Stakeholder Inputs'!H136,\"\")","v":""}]
[126,128,{"$f":"'Stakeholder Inputs'!B137","v":0},{"$f":"'Stakeholder Inputs'!C137","v":0},{"$f":"'Stakeholder Inputs'!D137","v":0},{"$f":"'Stakeholder Inputs'!E137","v":0},{"$f":"'Stakeholder Inputs'!F137","v":0},{"$f":"'Stakeholder Inputs'!I137","v":false},13,0,13,0,0,0,false,0,0,0,42,48,{"$f":"IF('Stakeholder Inputs'!H137<>0,'Stakeholder Inputs'!H137,\"\")","v":""}]
[127,129,{"$f":"'Stakeholder Inputs'!B138","v":0},{"$f":"'Stakeholder Inputs'!C138","v":0},{"$f":"'Stakeholder Inputs'!D138","v":0},{"$f":"'Stakeholder Inputs'!E138","v":0},{"$f":"'Stakeholder Inputs'!F138","v":0},{"$f":"'Stakeholder Inputs'!I138","v":false},13,0,13,0,0,0,false,0,0,0,31,59,{"$f":"IF('Stakeholder Inputs'!H138<>0,'Stakeholder Inputs'!H138,\"\")","v":""}]
[128,130,{"$f":"'Stakeholder Inputs'!B139","v":0},{"$f":"'Stakeholder Inputs'!C139","v":0},{"$f":"'Stakeholder Inputs'!D139","v":0},{"$f":"'Stakeholder Inputs'!E139","v":0},{"$f":"'Stakeholder Inputs'!F139","v":0},{"$f":"'Stakeholder Inputs'!I139","v":false},13,0,13,0,0,0,false,0,0,0,41,49,{"$f":"IF('Stakeholder Inputs'!H139<>0,'Stakeholder Inputs'!H139,\"\")","v":""}]
[129,131,{"$f":"'Stakeholder Inputs'!B140","v":0},{"$f":"'Stakeholder Inputs'!C140","v":0},{"$f":"'Stakeholder Inputs'!D140","v":0},{"$f":"'Stakeholder Inputs'!E140","v":0},{"$f":"'Stakeholder Inputs'!F140","v":0},{"$f":"'Stakeholder Inputs'!I140","v":false},13,0,13,0,0,0,false,0,0,0,15,75,{"$f":"IF('Stakeholder Inputs'!H140<>0,'Stakeholder Inputs'!H140,\"\")","v":""}]
[130,132,{"$f":"'Stakeholder Inputs'!B141","v":0},{"$f":"'Stakeholder Inputs'!C141","v":0},{"$f":"'Stakeholder Inputs'!D141","v":0},{"$f":"'Stakeholder Inputs'!E141","v":0},{"$f":"'Stakeholder Inputs'!F141","v":0},{"$f":"'Stakeholder Inputs'!I141","v":false},13,0,13,0,0,0,false,0,0,0,83,7,{"$f":"IF('Stakeholder Inputs'!H141<>0,'Stakeholder Inputs'!H141,\"\")","v":""}]
[131,133,{"$f":"'Stakeholder Inputs'!B142","v":0},{"$f":"'Stakeholder Inputs'!C142","v":0},{"$f":"'Stakeholder Inputs'!D142","v":0},{"$f":"'Stakeholder Inputs'!E142","v":0},{"$f":"'Stakeholder Inputs'!F142","v":0},{"$f":"'Stakeholder Inputs'!I142","v":false},13,0,13,0,0,0,false,0,0,0,73,17,{"$f":"IF('Stakeholder Inputs'!H142<>0,'Stakeholder Inputs'!H142,\"\")","v":""}]
[132,134,{"$f":"'Stakeholder Inputs'!B143","v":0},{"$f":"'Stakeholder Inputs'!C143","v":0},{"$f":"'Stakeholder Inputs'!D143","v":0},{"$f":"'Stakeholder Inputs'!E143","v":0},{"$f":"'Stakeholder Inputs'!F143","v":0},{"$f":"'Stakeholder Inputs'!I143","v":false},13,0,13,0,0,0,false,0,0,0,29,61,{"$f":"IF('Stakeholder Inputs'!H143<>0,'Stakeholder Inputs'!H143,\"\")","v":""}]
[133,135,{"$f":"'Stakeholder Inputs'!B144","v":0},{"$f":"'Stakeholder Inputs'!C144","v":0},{"$f":"'Stakeholder Inputs'!D144","v":0},{"$f":"'Stakeholder Inputs'!E144","v":0},{"$f":"'Stakeholder Inputs'!F144","v":0},{"$f":"'Stakeholder Inputs'!I144","v":false},13,0,13,0,0,0,false,0,0,0,49,41,{"$f":"IF('Stakeholder Inputs'!H144<>0,'Stakeholder Inputs'!H144,\"\")","v":""}]
[134,136,{"$f":"'Stakeholder Inputs'!B145","v":0},{"$f":"'Stakeholder Inputs'!C145","v":0},{"$f":"'Stakeholder Inputs'!D145","v":0},{"$f":"'Stakeholder Inputs'!E145","v":0},{"$f":"'Stakeholder Inputs'!F145","v":0},{"$f":"'Stakeholder Inputs'!I145","v":false},13,0,13,0,0,0,false,0,0,0,58,32,{"$f":"IF('Stakeholder Inputs'!H145<>0,'Stakeholder Inputs'!H145,\"\")","v":""}]
[135,137,{"$f":"'Stakeholder Inputs'!B146","v":0},{"$f":"'Stakeholder Inputs'!C146","v":0},{"$f":"'Stakeholder Inputs'!D146","v":0},{"$f":"'Stakeholder Inputs'!E146","v":0},{"$f":"'Stakeholder Inputs'!F146","v":0},{"$f":"'Stakeholder Inputs'!I146","v":false},13,0,13,0,0,0,false,0,0,0,77,13,{"$f":"IF('Stakeholder Inputs'!H146<>0,'Stakeholder Inputs'!H146,\"\")","v":""}]
[136,138,{"$f":"'Stakeholder Inputs'!B147","v":0},{"$f":"'Stakeholder Inputs'!C147","v":0},{"$f":"'Stakeholder Inputs'!D147","v":0},{"$f":"'Stakeholder Inputs'!E147","v":0},{"$f":"'Stakeholder Inputs'!F147","v":0},{"$f":"'Stakeholder Inputs'!I147","v":false},13,0,13,0,0,0,false,0,0,0,26,64,{"$f":"IF('Stakeholder Inputs'!H147<>0,'Stakeholder Inputs'!H147,\"\")","v":""}]
[137,139,{"$f":"'Stakeholder Inputs'!B148","v":0},{"$f":"'Stakeholder Inputs'!C148","v":0},{"$f":"'Stakeholder Inputs'!D148","v":0},{"$f":"'Stakeholder Inputs'!E148","v":0},{"$f":"'Stakeholder Inputs'!F148","v":0},{"$f":"'Stakeholder Inputs'!I148","v":false},13,0,13,0,0,0,false,0,0,0,6,84,{"$f":"IF('Stakeholder Inputs'!H148<>0,'Stakeholder Inputs'!H148,\"\")","v":""}]
[138,140,{"$f":"'Stakeholder Inputs'!B149","v":0},{"$f":"'Stakeholder Inputs'!C149","v":0},{"$f":"'Stakeholder Inputs'!D149","v":0},{"$f":"'Stakeholder Inputs'!E149","v":0},{"$f":"'Stakeholder Inputs'!F149","v":0},{"$f":"'Stakeholder Inputs'!I149","v":false},13,0,13,0,0,0,false,0,0,0,42,48,{"$f":"IF('Stakeholder Inputs'!H149<>0,'Stakeholder Inputs'!H149,\"\")","v":""}]
[139,141,{"$f":"'Stakeholder Inputs'!B150","v":0},{"$f":"'Stakeholder Inputs'!C150","v":0},{"$f":"'Stakeholder Inputs'!D150","v":0},{"$f":"'Stakeholder Inputs'!E150","v":0},{"$f":"'Stakeholder Inputs'!F150","v":0},{"$f":"'Stakeholder Inputs'!I150","v":false},13,0,13,0,0,0,false,0,0,0,82,8,{"$f":"IF('Stakeholder Inputs'!H150<>0,'Stakeholder Inputs'!H150,\"\")","v":""}]
[140,142,{"$f":"'Stakeholder Inputs'!B151","v":0},{"$f":"'Stakeholder Inputs'!C151","v":0},{"$f":"'Stakeholder Inputs'!D151","v":0},{"$f":"'Stakeholder Inputs'!E151","v":0},{"$f":"'Stakeholder Inputs'!F151","v":0},{"$f":"'Stakeholder Inputs'!I151","v":false},{"$f":"(10-E151+configuration_distanceoffset)","v":13},{"$f":"C151","v":0},{"$f":"I151*COS(R151)","v":13},{"$f":"I151*SIN(R151)","v":0},{"$f":"F151","v":0},{"$f":"G151","v":0},{"$f":"H151","v":false},{"$f":"IFERROR(VLOOKUP(D151,table_quadrants_number,7,FALSE),0)","v":0},{"$f":"IFERROR(VLOOKUP(P151,table_quadrants_angles,2,FALSE)+S151,0)","v":0},{"$f":"RADIANS(Q151)","v":0},{"$f":"90-T151","v":22},68,{"$f":"IF('Stakeholder Inputs'!H151<>0,'Stakeholder Inputs'!H151,\"\")","v":""}]
[141,143,{"$f":"'Stakeholder Inputs'!B152","v":0},{"$f":"'Stakeholder Inputs'!C152","v":0},{"$f":"'Stakeholder Inputs'!D152","v":0},{"$f":"'Stakeholder Inputs'!E152","v":0},{"$f":"'Stakeholder Inputs'!F152","v":0},{"$f":"'Stakeholder Inputs'!I152","v":false},13,0,13,0,0,0,false,0,0,0,54,36,{"$f":"IF('Stakeholder Inputs'!H152<>0,'Stakeholder Inputs'!H152,\"\")","v":""}]
[142,144,{"$f":"'Stakeholder Inputs'!B153","v":0},{"$f":"'Stakeholder Inputs'!C153","v":0},{"$f":"'Stakeholder Inputs'!D153","v":0},{"$f":"'Stakeholder Inputs'!E153","v":0},{"$f":"'Stakeholder Inputs'!F153","v":0},{"$f":"'Stakeholder Inputs'!I153","v":false},13,0,13,0,0,0,false,0,0,0,48,42,{"$f":"IF('Stakeholder Inputs'!H153<>0,'Stakeholder Inputs'!H153,\"\")","v":""}]
[143,145,{"$f":"'Stakeholder Inputs'!B154","v":0},{"$f":"'Stakeholder Inputs'!C154","v":0},{"$f":"'Stakeholder Inputs'!D154","v":0},{"$f":"'Stakeholder Inputs'!E154","v":0},{"$f":"'Stakeholder Inputs'!F154","v":0},{"$f":"'Stakeholder Inputs'!I154","v":false},13,0,13,0,0,0,false,0,0,0,46,44,{"$f":"IF('Stakeholder Inputs'!H154<>0,'Stakeholder Inputs'!H154,\"\")","v":""}]
[144,146,{"$f":"'Stakeholder Inputs'!B155","v":0},{"$f":"'Stakeholder Inputs'!C155","v":0},{"$f":"'Stakeholder Inputs'!D155","v":0},{"$f":"'Stakeholder Inputs'!E155","v":0},{"$f":"'Stakeholder Inputs'!F155","v":0},{"$f":"'Stakeholder Inputs'!I155","v":false},13,0,13,0,0,0,false,0,0,0,72,18,{"$f":"IF('Stakeholder Inputs'!H155<>0,'Stakeholder Inputs'!H155,\"\")","v":""}]
[145,147,{"$f":"'Stakeholder Inputs'!B156","v":0},{"$f":"'Stakeholder Inputs'!C156","v":0},{"$f":"'Stakeholder Inputs'!D156","v":0},{"$f":"'Stakeholder Inputs'!E156","v":0},{"$f":"'Stakeholder Inputs'!F156","v":0},{"$f":"'Stakeholder Inputs'!I156","v":false},13,0,13,0,0,0,false,0,0,0,60,30,{"$f":"IF('Stakeholder Inputs'!H156<>0,'Stakeholder Inputs'!H156,\"\")","v":""}]
[146,148,{"$f":"'Stakeholder Inputs'!B157","v":0},{"$f":"'Stakeholder Inputs'!C157","v":0},{"$f":"'Stakeholder Inputs'!D157","v":0},{"$f":"'Stakeholder Inputs'!E157","v":0},{"$f":"'Stakeholder Inputs'!F157","v":0},{"$f":"'Stakeholder Inputs'!I157","v":false},13,0,13,0,0,0,false,0,0,0,82,8,{"$f":"IF('Stakeholder Inputs'!H157<>0,'Stakeholder Inputs'!H157,\"\")","v":""}]
[147,149,{"$f":"'Stakeholder Inputs'!B158","v":0},{"$f":"'Stakeholder Inputs'!C158","v":0},{"$f":"'Stakeholder Inputs'!D158","v":0},{"$f":"'Stakeholder Inputs'!E158","v":0},{"$f":"'Stakeholder Inputs'!F158","v":0},{"$f":"'Stakeholder Inputs'!I158","v":false},13,0,13,0,0,0,false,0,0,0,37,53,{"$f":"IF('Stakeholder Inputs'!H158<>0,'Stakeholder Inputs'!H158,\"\")","v":""}]
[148,150,{"$f":"'Stakeholder Inputs'!B159","v":0},{"$f":"'Stakeholder Inputs'!C159","v":0},{"$f":"'Stakeholder Inputs'!D159","v":0},{"$f":"'Stakeholder Inputs'!E159","v":0},{"$f":"'Stakeholder Inputs'!F159","v":0},{"$f":"'Stakeholder Inputs'!I159","v":false},13,0,13,0,0,0,false,0,0,0,75,15,{"$f":"IF('Stakeholder Inputs'!H159<>0,'Stakeholder Inputs'!H159,\"\")","v":""}]
[149,151,{"$f":"'Stakeholder Inputs'!B160","v":0},{"$f":"'Stakeholder Inputs'!C160","v":0},{"$f":"'Stakeholder Inputs'!D160","v":0},{"$f":"'Stakeholder Inputs'!E160","v":0},{"$f":"'Stakeholder Inputs'!F160","v":0},{"$f":"'Stakeholder Inputs'!I160","v":false},13,0,13,0,0,0,false,0,0,0,6,84,{"$f":"IF('Stakeholder Inputs'!H160<>0,'Stakeholder Inputs'!H160,\"\")","v":""}]
[150,152,{"$f":"'Stakeholder Inputs'!B161","v":0},{"$f":"'Stakeholder Inputs'!C161","v":0},{"$f":"'Stakeholder Inputs'!D161","v":0},{"$f":"'Stakeholder Inputs'!E161","v":0},{"$f":"'Stakeholder Inputs'!F161","v":0},{"$f":"'Stakeholder Inputs'!I161","v":false},13,0,13,0,0,0,false,0,0,0,82,8,{"$f":"IF('Stakeholder Inputs'!H161<>0,'Stakeholder Inputs'!H161,\"\")","v":""}]
[151,153,{"$f":"'Stakeholder Inputs'!B162","v":0},{"$f":"'Stakeholder Inputs'!C162","v":0},{"$f":"'Stakeholder Inputs'!D162","v":0},{"$f":"'Stakeholder Inputs'!E162","v":0},{"$f":"'Stakeholder Inputs'!F162","v":0},{"$f":"'Stakeholder Inputs'!I162","v":false},13,0,13,0,0,0,false,0,0,0,50,40,{"$f":"IF('Stakeholder Inputs'!H162<>0,'Stakeholder Inputs'!H162,\"\")","v":""}]
[152,154,{"$f":"'Stakeholder Inputs'!B163","v":0},{"$f":"'Stakeholder Inputs'!C163","v":0},{"$f":"'Stakeholder Inputs'!D163","v":0},{"$f":"'Stakeholder Inputs'!E163","v":0},{"$f":"'Stakeholder Inputs'!F163","v":0},{"$f":"'Stakeholder Inputs'!I163","v":false},13,0,13,0,0,0,false,0,0,0,66,24,{"$f":"IF('Stakeholder Inputs'!H163<>0,'Stakeholder Inputs'!H163,\"\")","v":""}]
[153,155,{"$f":"'Stakeholder Inputs'!B164","v":0},{"$f":"'Stakeholder Inputs'!C164","v":0},{"$f":"'Stakeholder Inputs'!D164","v":0},{"$f":"'Stakeholder Inputs'!E164","v":0},{"$f":"'Stakeholder Inputs'!F164","v":0},{"$f":"'Stakeholder Inputs'!I164","v":false},13,0,13,0,0,0,false,0,0,0,11,79,{"$f":"IF('Stakeholder Inputs'!H164<>0,'Stakeholder Inputs'!H164,\"\")","v":""}]
[154,156,{"$f":"'Stakeholder Inputs'!B165","v":0},{"$f":"'Stakeholder Inputs'!C165","v":0},{"$f":"'Stakeholder Inputs'!D165","v":0},{"$f":"'Stakeholder Inputs'!E165","v":0},{"$f":"'Stakeholder Inputs'!F165","v":0},{"$f":"'Stakeholder Inputs'!I165","v":false},13,0,13,0,0,0,false,0,0,0,22,68,{"$f":"IF('Stakeholder Inputs'!H165<>0,'Stakeholder Inputs'!H165,\"\")","v":""}]
[155,157,{"$f":"'Stakeholder Inputs'!B166","v":0},{"$f":"'Stakeholder Inputs'!C166","v":0},{"$f":"'Stakeholder Inputs'!D166","v":0},{"$f":"'Stakeholder Inputs'!E166","v":0},{"$f":"'Stakeholder Inputs'!F166","v":0},{"$f":"'Stakeholder Inputs'!I166","v":false},13,0,13,0,0,0,false,0,0,0,66,24,{"$f":"IF('Stakeholder Inputs'!H166<>0,'Stakeholder Inputs'!H166,\"\")","v":""}]
[156,158,{"$f":"'Stakeholder Inputs'!B167","v":0},{"$f":"'Stakeholder Inputs'!C167","v":0},{"$f":"'Stakeholder Inputs'!D167","v":0},{"$f":"'Stakeholder Inputs'!E167","v":0},{"$f":"'Stakeholder Inputs'!F167","v":0},{"$f":"'Stakeholder Inputs'!I167","v":false},13,0,13,0,0,0,false,0,0,0,29,61,{"$f":"IF('Stakeholder Inputs'!H167<>0,'Stakeholder Inputs'!H167,\"\")","v":""}]
[157,159,{"$f":"'Stakeholder Inputs'!B168","v":0},{"$f":"'Stakeholder Inputs'!C168","v":0},{"$f":"'Stakeholder Inputs'!D168","v":0},{"$f":"'Stakeholder Inputs'!E168","v":0},{"$f":"'Stakeholder Inputs'!F168","v":0},{"$f":"'Stakeholder Inputs'!I168","v":false},13,0,13,0,0,0,false,0,0,0,67,23,{"$f":"IF('Stakeholder Inputs'!H168<>0,'Stakeholder Inputs'!H168,\"\")","v":""}]
[158,160,{"$f":"'Stakeholder Inputs'!B169","v":0},{"$f":"'Stakeholder Inputs'!C169","v":0},{"$f":"'Stakeholder Inputs'!D169","v":0},{"$f":"'Stakeholder Inputs'!E169","v":0},{"$f":"'Stakeholder Inputs'!F169","v":0},{"$f":"'Stakeholder Inputs'!I169","v":false},13,0,13,0,0,0,false,0,0,0,82,8,{"$f":"IF('Stakeholder Inputs'!H169<>0,'Stakeholder Inputs'!H169,\"\")","v":""}]
[159,161,{"$f":"'Stakeholder Inputs'!B170","v":0},{"$f":"'Stakeholder Inputs'!C170","v":0},{"$f":"'Stakeholder Inputs'!D170","v":0},{"$f":"'Stakeholder Inputs'!E170","v":0},{"$f":"'Stakeholder Inputs'!F170","v":0},{"$f":"'Stakeholder Inputs'!I170","v":false},13,0,13,0,0,0,false,0,0,0,88,2,{"$f":"IF('Stakeholder Inputs'!H170<>0,'Stakeholder Inputs'!H170,\"\")","v":""}]
[160,162,{"$f":"'Stakeholder Inputs'!B171","v":0},{"$f":"'Stakeholder Inputs'!C171","v":0},{"$f":"'Stakeholder Inputs'!D171","v":0},{"$f":"'Stakeholder Inputs'!E171","v":0},{"$f":"'Stakeholder Inputs'!F171","v":0},{"$f":"'Stakeholder Inputs'!I171","v":false},13,0,13,0,0,0,false,0,0,0,61,29,{"$f":"IF('Stakeholder Inputs'!H171<>0,'Stakeholder Inputs'!H171,\"\")","v":""}]
[161,163,{"$f":"'Stakeholder Inputs'!B172","v":0},{"$f":"'Stakeholder Inputs'!C172","v":0},{"$f":"'Stakeholder Inputs'!D172","v":0},{"$f":"'Stakeholder Inputs'!E172","v":0},{"$f":"'Stakeholder Inputs'!F172","v":0},{"$f":"'Stakeholder Inputs'!I172","v":false},13,0,13,0,0,0,false,0,0,0,19,71,{"$f":"IF('Stakeholder Inputs'!H172<>0,'Stakeholder Inputs'!H172,\"\")","v":""}]
[162,164,{"$f":"'Stakeholder Inputs'!B173","v":0},{"$f":"'Stakeholder Inputs'!C173","v":0},{"$f":"'Stakeholder Inputs'!D173","v":0},{"$f":"'Stakeholder Inputs'!E173","v":0},{"$f":"'Stakeholder Inputs'!F173","v":0},{"$f":"'Stakeholder Inputs'!I173","v":false},13,0,13,0,0,0,false,0,0,0,63,27,{"$f":"IF('Stakeholder Inputs'!H173<>0,'Stakeholder Inputs'!H173,\"\")","v":""}]
[163,165,{"$f":"'Stakeholder Inputs'!B174","v":0},{"$f":"'Stakeholder Inputs'!C174","v":0},{"$f":"'Stakeholder Inputs'!D174","v":0},{"$f":"'Stakeholder Inputs'!E174","v":0},{"$f":"'Stakeholder Inputs'!F174","v":0},{"$f":"'Stakeholder Inputs'!I174","v":false},13,0,13,0,0,0,false,0,0,0,69,21,{"$f":"IF('Stakeholder Inputs'!H174<>0,'Stakeholder Inputs'!H174,\"\")","v":""}]
[164,166,{"$f":"'Stakeholder Inputs'!B175","v":0},{"$f":"'Stakeholder Inputs'!C175","v":0},{"$f":"'Stakeholder Inputs'!D175","v":0},{"$f":"'Stakeholder Inputs'!E175","v":0},{"$f":"'Stakeholder Inputs'!F175","v":0},{"$f":"'Stakeholder Inputs'!I175","v":false},13,0,13,0,0,0,false,0,0,0,47,43,{"$f":"IF('Stakeholder Inputs'!H175<>0,'Stakeholder Inputs'!H175,\"\")","v":""}]
[165,167,{"$f":"'Stakeholder Inputs'!B176","v":0},{"$f":"'Stakeholder Inputs'!C176","v":0},{"$f":"'Stakeholder Inputs'!D176","v":0},{"$f":"'Stakeholder Inputs'!E176","v":0},{"$f":"'Stakeholder Inputs'!F176","v":0},{"$f":"'Stakeholder Inputs'!I176","v":false},13,0,13,0,0,0,false,0,0,0,67,23,{"$f":"IF('Stakeholder Inputs'!H176<>0,'Stakeholder Inputs'!H176,\"\")","v":""}]
[166,168,{"$f":"'Stakeholder Inputs'!B177","v":0},{"$f":"'Stakeholder Inputs'!C177","v":0},{"$f":"'Stakeholder Inputs'!D177","v":0},{"$f":"'Stakeholder Inputs'!E177","v":0},{"$f":"'Stakeholder Inputs'!F177","v":0},{"$f":"'Stakeholder Inputs'!I177","v":false},13,0,13,0,0,0,false,0,0,0,60,30,{"$f":"IF('Stakeholder Inputs'!H177<>0,'Stakeholder Inputs'!H177,\"\")","v":""}]
[167,169,{"$f":"'Stakeholder Inputs'!B178","v":0},{"$f":"'Stakeholder Inputs'!C178","v":0},{"$f":"'Stakeholder Inputs'!D178","v":0},{"$f":"'Stakeholder Inputs'!E178","v":0},{"$f":"'Stakeholder Inputs'!F178","v":0},{"$f":"'Stakeholder Inputs'!I178","v":false},13,0,13,0,0,0,false,0,0,0,86,4,{"$f":"IF('Stakeholder Inputs'!H178<>0,'Stakeholder Inputs'!H178,\"\")","v":""}]
[168,170,{"$f":"'Stakeholder Inputs'!B179","v":0},{"$f":"'Stakeholder Inputs'!C179","v":0},{"$f":"'Stakeholder Inputs'!D179","v":0},{"$f":"'Stakeholder Inputs'!E179","v":0},{"$f":"'Stakeholder Inputs'!F179","v":0},{"$f":"'Stakeholder Inputs'!I179","v":false},13,0,13,0,0,0,false,0,0,0,47,43,{"$f":"IF('Stakeholder Inputs'!H179<>0,'Stakeholder Inputs'!H179,\"\")","v":""}]
[169,171,{"$f":"'Stakeholder Inputs'!B180","v":0},{"$f":"'Stakeholder Inputs'!C180","v":0},{"$f":"'Stakeholder Inputs'!D180","v":0},{"$f":"'Stakeholder Inputs'!E180","v":0},{"$f":"'Stakeholder Inputs'!F180","v":0},{"$f":"'Stakeholder Inputs'!I180","v":false},13,0,13,0,0,0,false,0,0,0,72,18,{"$f":"IF('Stakeholder Inputs'!H180<>0,'Stakeholder Inputs'!H180,\"\")","v":""}]
[170,172,{"$f":"'Stakeholder Inputs'!B181","v":0},{"$f":"'Stakeholder Inputs'!C181","v":0},{"$f":"'Stakeholder Inputs'!D181","v":0},{"$f":"'Stakeholder Inputs'!E181","v":0},{"$f":"'Stakeholder Inputs'!F181","v":0},{"$f":"'Stakeholder Inputs'!I181","v":false},13,0,13,0,0,0,false,0,0,0,12,78,{"$f":"IF('Stakeholder Inputs'!H181<>0,'Stakeholder Inputs'!H181,\"\")","v":""}]
[171,173,{"$f":"'Stakeholder Inputs'!B182","v":0},{"$f":"'Stakeholder Inputs'!C182","v":0},{"$f":"'Stakeholder Inputs'!D182","v":0},{"$f":"'Stakeholder Inputs'!E182","v":0},{"$f":"'Stakeholder Inputs'!F182","v":0},{"$f":"'Stakeholder Inputs'!I182","v":false},13,0,13,0,0,0,false,0,0,0,37,53,{"$f":"IF('Stakeholder Inputs'!H182<>0,'Stakeholder Inputs'!H182,\"\")","v":""}]
[172,174,{"$f":"'Stakeholder Inputs'!B183","v":0},{"$f":"'Stakeholder Inputs'!C183","v":0},{"$f":"'Stakeholder Inputs'!D183","v":0},{"$f":"'Stakeholder Inputs'!E183","v":0},{"$f":"'Stakeholder Inputs'!F183","v":0},{"$f":"'Stakeholder Inputs'!I183","v":false},13,0,13,0,0,0,false,0,0,0,22,68,{"$f":"IF('Stakeholder Inputs'!H183<>0,'Stakeholder Inputs'!H183,\"\")","v":""}]
[173,175,{"$f":"'Stakeholder Inputs'!B184","v":0},{"$f":"'Stakeholder Inputs'!C184","v":0},{"$f":"'Stakeholder Inputs'!D184","v":0},{"$f":"'Stakeholder Inputs'!E184","v":0},{"$f":"'Stakeholder Inputs'!F184","v":0},{"$f":"'Stakeholder Inputs'!I184","v":false},13,0,13,0,0,0,false,0,0,0,6,84,{"$f":"IF('Stakeholder Inputs'!H184<>0,'Stakeholder Inputs'!H184,\"\")","v":""}]
[174,176,{"$f":"'Stakeholder Inputs'!B185","v":0},{"$f":"'Stakeholder Inputs'!C185","v":0},{"$f":"'Stakeholder Inputs'!D185","v":0},{"$f":"'Stakeholder Inputs'!E185","v":0},{"$f":"'Stakeholder Inputs'!F185","v":0},{"$f":"'Stakeholder Inputs'!I185","v":false},13,0,13,0,0,0,false,0,0,0,60,30,{"$f":"IF('Stakeholder Inputs'!H185<>0,'Stakeholder Inputs'!H185,\"\")","v":""}]
[175,177,{"$f":"'Stakeholder Inputs'!B186","v":0},{"$f":"'Stakeholder Inputs'!C186","v":0},{"$f":"'Stakeholder Inputs'!D186","v":0},{"$f":"'Stakeholder Inputs'!E186","v":0},{"$f":"'Stakeholder Inputs'!F186","v":0},{"$f":"'Stakeholder Inputs'!I186","v":false},13,0,13,0,0,0,false,0,0,0,41,49,{"$f":"IF('Stakeholder Inputs'!H186<>0,'Stakeholder Inputs'!H186,\"\")","v":""}]
[176,178,{"$f":"'Stakeholder Inputs'!B187","v":0},{"$f":"'Stakeholder Inputs'!C187","v":0},{"$f":"'Stakeholder Inputs'!D187","v":0},{"$f":"'Stakeholder Inputs'!E187","v":0},{"$f":"'Stakeholder Inputs'!F187","v":0},{"$f":"'Stakeholder Inputs'!I187","v":false},13,0,13,0,0,0,false,0,0,0,83,7,{"$f":"IF('Stakeholder Inputs'!H187<>0,'Stakeholder Inputs'!H187,\"\")","v":""}]
[177,179,{"$f":"'Stakeholder Inputs'!B188","v":0},{"$f":"'Stakeholder Inputs'!C188","v":0},{"$f":"'Stakeholder Inputs'!D188","v":0},{"$f":"'Stakeholder Inputs'!E188","v":0},{"$f":"'Stakeholder Inputs'!F188","v":0},{"$f":"'Stakeholder Inputs'!I188","v":false},13,0,13,0,0,0,false,0,0,0,33,57,{"$f":"IF('Stakeholder Inputs'!H188<>0,'Stakeholder Inputs'!H188,\"\")","v":""}]
[178,180,{"$f":"'Stakeholder Inputs'!B189","v":0},{"$f":"'Stakeholder Inputs'!C189","v":0},{"$f":"'Stakeholder Inputs'!D189","v":0},{"$f":"'Stakeholder Inputs'!E189","v":0},{"$f":"'Stakeholder Inputs'!F189","v":0},{"$f":"'Stakeholder Inputs'!I189","v":false},13,0,13,0,0,0,false,0,0,0,53,37,{"$f":"IF('Stakeholder Inputs'!H189<>0,'Stakeholder Inputs'!H189,\"\")","v":""}]
[179,181,{"$f":"'Stakeholder Inputs'!B190","v":0},{"$f":"'Stakeholder Inputs'!C190","v":0},{"$f":"'Stakeholder Inputs'!D190","v":0},{"$f":"'Stakeholder Inputs'!E190","v":0},{"$f":"'Stakeholder Inputs'!F190","v":0},{"$f":"'Stakeholder Inputs'!I190","v":false},13,0,13,0,0,0,false,0,0,0,3,87,{"$f":"IF('Stakeholder Inputs'!H190<>0,'Stakeholder Inputs'!H190,\"\")","v":""}]
[180,182,{"$f":"'Stakeholder Inputs'!B191","v":0},{"$f":"'Stakeholder Inputs'!C191","v":0},{"$f":"'Stakeholder Inputs'!D191","v":0},{"$f":"'Stakeholder Inputs'!E191","v":0},{"$f":"'Stakeholder Inputs'!F191","v":0},{"$f":"'Stakeholder Inputs'!I191","v":false},13,0,13,0,0,0,false,0,0,0,80,10,{"$f":"IF('Stakeholder Inputs'!H191<>0,'Stakeholder Inputs'!H191,\"\")","v":""}]
[181,183,{"$f":"'Stakeholder Inputs'!B192","v":0},{"$f":"'Stakeholder Inputs'!C192","v":0},{"$f":"'Stakeholder Inputs'!D192","v":0},{"$f":"'Stakeholder Inputs'!E192","v":0},{"$f":"'Stakeholder Inputs'!F192","v":0},{"$f":"'Stakeholder Inputs'!I192","v":false},13,0,13,0,0,0,false,0,0,0,6,84,{"$f":"IF('Stakeholder Inputs'!H192<>0,'Stakeholder Inputs'!H192,\"\")","v":""}]
[182,184,{"$f":"'Stakeholder Inputs'!B193","v":0},{"$f":"'Stakeholder Inputs'!C193","v":0},{"$f":"'Stakeholder Inputs'!D193","v":0},{"$f":"'Stakeholder Inputs'!E193","v":0},{"$f":"'Stakeholder Inputs'!F193","v":0},{"$f":"'Stakeholder Inputs'!I193","v":false},13,0,13,0,0,0,false,0,0,0,34,56,{"$f":"IF('Stakeholder Inputs'!H193<>0,'Stakeholder Inputs'!H193,\"\")","v":""}]
[183,185,{"$f":"'Stakeholder Inputs'!B194","v":0},{"$f":"'Stakeholder Inputs'!C194","v":0},{"$f":"'Stakeholder Inputs'!D194","v":0},{"$f":"'Stakeholder Inputs'!E194","v":0},{"$f":"'Stakeholder Inputs'!F194","v":0},{"$f":"'Stakeholder Inputs'!I194","v":false},13,0,13,0,0,0,false,0,0,0,59,31,{"$f":"IF('Stakeholder Inputs'!H194<>0,'Stakeholder Inputs'!H194,\"\")","v":""}]
[184,186,{"$f":"'Stakeholder Inputs'!B195","v":0},{"$f":"'Stakeholder Inputs'!C195","v":0},{"$f":"'Stakeholder Inputs'!D195","v":0},{"$f":"'Stakeholder Inputs'!E195","v":0},{"$f":"'Stakeholder Inputs'!F195","v":0},{"$f":"'Stakeholder Inputs'!I195","v":false},13,0,13,0,0,0,false,0,0,0,77,13,{"$f":"IF('Stakeholder Inputs'!H195<>0,'Stakeholder Inputs'!H195,\"\")","v":""}]
[185,187,{"$f":"'Stakeholder Inputs'!B196","v":0},{"$f":"'Stakeholder Inputs'!C196","v":0},{"$f":"'Stakeholder Inputs'!D196","v":0},{"$f":"'Stakeholder Inputs'!E196","v":0},{"$f":"'Stakeholder Inputs'!F196","v":0},{"$f":"'Stakeholder Inputs'!I196","v":false},13,0,13,0,0,0,false,0,0,0,47,43,{"$f":"IF('Stakeholder Inputs'!H196<>0,'Stakeholder Inputs'!H196,\"\")","v":""}]
[186,188,{"$f":"'Stakeholder Inputs'!B197","v":0},{"$f":"'Stakeholder Inputs'!C197","v":0},{"$f":"'Stakeholder Inputs'!D197","v":0},{"$f":"'Stakeholder Inputs'!E197","v":0},{"$f":"'Stakeholder Inputs'!F197","v":0},{"$f":"'Stakeholder Inputs'!I197","v":false},13,0,13,0,0,0,false,0,0,0,71,19,{"$f":"IF('Stakeholder Inputs'!H197<>0,'Stakeholder Inputs'!H197,\"\")","v":""}]
[187,189,{"$f":"'Stakeholder Inputs'!B198","v":0},{"$f":"'Stakeholder Inputs'!C198","v":0},{"$f":"'Stakeholder Inputs'!D198","v":0},{"$f":"'Stakeholder Inputs'!E198","v":0},{"$f":"'Stakeholder Inputs'!F198","v":0},{"$f":"'Stakeholder Inputs'!I198","v":false},13,0,13,0,0,0,false,0,0,0,0,90,{"$f":"IF('Stakeholder Inputs'!H198<>0,'Stakeholder Inputs'!H198,\"\")","v":""}]
[188,190,{"$f":"'Stakeholder Inputs'!B199","v":0},{"$f":"'Stakeholder Inputs'!C199","v":0},{"$f":"'Stakeholder Inputs'!D199","v":0},{"$f":"'Stakeholder Inputs'!E199","v":0},{"$f":"'Stakeholder Inputs'!F199","v":0},{"$f":"'Stakeholder Inputs'!I199","v":false},13,0,13,0,0,0,false,0,0,0,79,11,{"$f":"IF('Stakeholder Inputs'!H199<>0,'Stakeholder Inputs'!H199,\"\")","v":""}]
[189,191,{"$f":"'Stakeholder Inputs'!B200","v":0},{"$f":"'Stakeholder Inputs'!C200","v":0},{"$f":"'Stakeholder Inputs'!D200","v":0},{"$f":"'Stakeholder Inputs'!E200","v":0},{"$f":"'Stakeholder Inputs'!F200","v":0},{"$f":"'Stakeholder Inputs'!I200","v":false},13,0,13,0,0,0,false,0,0,0,88,2,{"$f":"IF('Stakeholder Inputs'!H200<>0,'Stakeholder Inputs'!H200,\"\")","v":""}]
[190,192,{"$f":"'Stakeholder Inputs'!B201","v":0},{"$f":"'Stakeholder Inputs'!C201","v":0},{"$f":"'Stakeholder Inputs'!D201","v":0},{"$f":"'Stakeholder Inputs'!E201","v":0},{"$f":"'Stakeholder Inputs'!F201","v":0},{"$f":"'Stakeholder Inputs'!I201","v":false},13,0,13,0,0,0,false,0,0,0,59,31,{"$f":"IF('Stakeholder Inputs'!H201<>0,'Stakeholder Inputs'!H201,\"\")","v":""}]
[191,193,{"$f":"'Stakeholder Inputs'!B202","v":0},{"$f":"'Stakeholder Inputs'!C202","v":0},{"$f":"'Stakeholder Inputs'!D202","v":0},{"$f":"'Stakeholder Inputs'!E202","v":0},{"$f":"'Stakeholder Inputs'!F202","v":0},{"$f":"'Stakeholder Inputs'!I202","v":false},13,0,13,0,0,0,false,0,0,0,41,49,{"$f":"IF('Stakeholder Inputs'!H202<>0,'Stakeholder Inputs'!H202,\"\")","v":""}]
[192,194,{"$f":"'Stakeholder Inputs'!B203","v":0},{"$f":"'Stakeholder Inputs'!C203","v":0},{"$f":"'Stakeholder Inputs'!D203","v":0},{"$f":"'Stakeholder Inputs'!E203","v":0},{"$f":"'Stakeholder Inputs'!F203","v":0},{"$f":"'Stakeholder Inputs'!I203","v":false},13,0,13,0,0,0,false,0,0,0,7,83,{"$f":"IF('Stakeholder Inputs'!H203<>0,'Stakeholder Inputs'!H203,\"\")","v":""}]
[193,195,{"$f":"'Stakeholder Inputs'!B204","v":0},{"$f":"'Stakeholder Inputs'!C204","v":0},{"$f":"'Stakeholder Inputs'!D204","v":0},{"$f":"'Stakeholder Inputs'!E204","v":0},{"$f":"'Stakeholder Inputs'!F204","v":0},{"$f":"'Stakeholder Inputs'!I204","v":false},13,0,13,0,0,0,false,0,0,0,42,48,{"$f":"IF('Stakeholder Inputs'!H204<>0,'Stakeholder Inputs'!H204,\"\")","v":""}]
[194,196,{"$f":"'Stakeholder Inputs'!B205","v":0},{"$f":"'Stakeholder Inputs'!C205","v":0},{"$f":"'Stakeholder Inputs'!D205","v":0},{"$f":"'Stakeholder Inputs'!E205","v":0},{"$f":"'Stakeholder Inputs'!F205","v":0},{"$f":"'Stakeholder Inputs'!I205","v":false},13,0,13,0,0,0,false,0,0,0,54,36,{"$f":"IF('Stakeholder Inputs'!H205<>0,'Stakeholder Inputs'!H205,\"\")","v":""}]
[195,197,{"$f":"'Stakeholder Inputs'!B206","v":0},{"$f":"'Stakeholder Inputs'!C206","v":0},{"$f":"'Stakeholder Inputs'!D206","v":0},{"$f":"'Stakeholder Inputs'!E206","v":0},{"$f":"'Stakeholder Inputs'!F206","v":0},{"$f":"'Stakeholder Inputs'!I206","v":false},13,0,13,0,0,0,false,0,0,0,13,77,{"$f":"IF('Stakeholder Inputs'!H206<>0,'Stakeholder Inputs'!H206,\"\")","v":""}]
[196,198,{"$f":"'Stakeholder Inputs'!B207","v":0},{"$f":"'Stakeholder Inputs'!C207","v":0},{"$f":"'Stakeholder Inputs'!D207","v":0},{"$f":"'Stakeholder Inputs'!E207","v":0},{"$f":"'Stakeholder Inputs'!F207","v":0},{"$f":"'Stakeholder Inputs'!I207","v":false},13,0,13,0,0,0,false,0,0,0,15,75,{"$f":"IF('Stakeholder Inputs'!H207<>0,'Stakeholder Inputs'!H207,\"\")","v":""}]
[197,199,{"$f":"'Stakeholder Inputs'!B208","v":0},{"$f":"'Stakeholder Inputs'!C208","v":0},{"$f":"'Stakeholder Inputs'!D208","v":0},{"$f":"'Stakeholder Inputs'!E208","v":0},{"$f":"'Stakeholder Inputs'!F208","v":0},{"$f":"'Stakeholder Inputs'!I208","v":false},13,0,13,0,0,0,false,0,0,0,29,61,{"$f":"IF('Stakeholder Inputs'!H208<>0,'Stakeholder Inputs'!H208,\"\")","v":""}]
[198,200,{"$f":"'Stakeholder Inputs'!B209","v":0},{"$f":"'Stakeholder Inputs'!C209","v":0},{"$f":"'Stakeholder Inputs'!D209","v":0},{"$f":"'Stakeholder Inputs'!E209","v":0},{"$f":"'Stakeholder Inputs'!F209","v":0},{"$f":"'Stakeholder Inputs'!I209","v":false},13,0,13,0,0,0,false,0,0,0,25,65,{"$f":"IF('Stakeholder Inputs'!H209<>0,'Stakeholder Inputs'!H209,\"\")","v":""}]
[199,201,{"$f":"'Stakeholder Inputs'!B210","v":0},{"$f":"'Stakeholder Inputs'!C210","v":0},{"$f":"'Stakeholder Inputs'!D210","v":0},{"$f":"'Stakeholder Inputs'!E210","v":0},{"$f":"'Stakeholder Inputs'!F210","v":0},{"$f":"'Stakeholder Inputs'!I210","v":false},13,0,13,0,0,0,false,0,0,0,0,90,{"$f":"IF('Stakeholder Inputs'!H210<>0,'Stakeholder Inputs'!H210,\"\")","v":""}]
[200,202,{"$f":"'Stakeholder Inputs'!B211","v":0},{"$f":"'Stakeholder Inputs'!C211","v":0},{"$f":"'Stakeholder Inputs'!D211","v":0},{"$f":"'Stakeholder Inputs'!E211","v":0},{"$f":"'Stakeholder Inputs'!F211","v":0},{"$f":"'Stakeholder Inputs'!I211","v":false},13,0,13,0,0,0,false,0,0,0,60,30,{"$f":"IF('Stakeholder Inputs'!H211<>0,'Stakeholder Inputs'!H211,\"\")","v":""}]